{"text_format":"1","workbook":"xlsx","n_sheets":9,"sheets":["案件情報","構成シート","構成シート (入力サンプル)","マスター_要件シート用","メンテナンス用","CPW表","＜参考資料＞パワーサイレンサーとスマートトレイ","vlook","SWMA"],"not_rendered":{"charts":0,"images":10,"macros":1,"external_links":0,"defined_names":60,"comments":1,"pivot_tables":0},"unopened":[],"bounds":{"document_bytes":16777216,"sheet_cells":100000,"rows_first":2000,"rows_last":500,"rows_between":2000,"halvings":0,"cell_chars":16384,"cell_head_chars":4096},"cells_cut":0,"cells_raw":0,"read":"whole","date_system":"1900"}

{"sheet":"案件情報","index":0,"n_rows":24,"n_cols":24,"rows_kept":24,"cut":false,"hidden":false,"merged":[[10,13,10,24],[13,13,13,24],[13,7,13,9],[7,7,7,10],[13,3,13,4],[14,10,14,12],[14,7,14,9],[13,5,13,6],[12,3,12,6],[11,3,11,6],[14,5,14,6],[4,21,4,24],[4,18,4,20],[6,1,6,4],[6,14,6,24],[10,3,10,4],[4,1,4,3],[4,4,4,12],[4,16,4,17],[6,5,6,6],[6,7,6,13],[10,5,10,6],[4,14,4,15],[9,1,9,24],[7,11,7,24],[8,1,8,24],[7,1,7,6],[1,1,1,22],[1,23,1,24],[2,23,2,24],[3,20,3,21],[3,22,3,24],[3,1,3,3],[3,4,3,12],[3,16,3,19],[3,14,3,15],[23,7,23,24],[23,1,23,6],[22,7,22,16],[22,1,22,6],[22,17,22,24],[18,1,21,2],[18,3,21,6],[18,7,18,12],[18,13,18,18],[18,19,18,24],[19,7,19,10],[20,7,20,12],[20,13,21,24],[21,7,21,10],[21,11,21,12],[19,11,19,12],[19,13,19,16],[19,17,19,18],[19,19,19,22],[19,23,19,24],[15,13,15,24],[16,13,16,14],[17,13,17,14],[10,1,17,2],[15,3,17,6],[15,7,17,12],[14,13,14,24],[14,3,14,4],[13,10,13,12],[10,7,10,9],[10,10,10,12],[11,13,11,24],[12,13,12,24],[12,7,12,12],[11,8,11,9],[11,11,11,12]]}
[null,"UPDATE　：　2025/2/27"]
[]
[]
[null,"貴社名(ご担当者様)",null,null,null,null,null,null,null,null,null,null,null,"様","既存モデル",null,null,null,null,null,"シリアル番号"]
[null,"お客様(EU)名",null,null,null,null,null,null,null,null,null,null,null,"様","発注時期",null,"要選択",null,"Opportunity ID"]
[]
[null,"LPAR構成希望",null,null,null,"要選択",null,"要選択",null,null,null,null,null,null,"※お打ち合わせご希望の場合には、partnercontact@i-guazu.co.jp へご依頼ください。"]
[{"$f":"CONCATENATE(F7,H8)","v":"要選択要選択"},"既存機同等希望(NonLPAR)",null,null,null,null,null,"要選択",null,null,null,"※｢はい｣を選択時、各HW保守のご指定までお願いいたします。\n (HW：既存機を元に構成 SW：既存踏襲 / ご指定箇所がある場合は｢■ご要望｣欄に記入ください)"]
[null,"■ご要望　　　※下記に記載できないHWの要望やSWに関する詳細な要望を記入ください。"]
[]
[null,"各HW",null,"オーダー",null,"用途",null,"要選択",null,null,"要選択"]
[null,null,null,"Primary Machine",null,null,null,"M/T：","必須",null,"S/N：","必須",null,"CBU機のみ ※未導入の場合は機械グループを指定"]
[null,null,null,"電圧指定",null,null,null,"要選択"]
[null,null,null,"保守締結タイプ",null,"年数",null,"ExpertCare",null,null,"要選択",null,null,"※ExpertCare設定のない製品は同等で選定"]
[null,null,null,"サービスレベル",null,"SIオプション",null,"要選択",null,null,"MR",null,null,"※MR (メディアリテンションサービス) ： ハードディスク/メディアお渡し (3年/5年のみ)"]
[null,null,null,"設定サポート",null,null,null,"不要",null,null,null,null,null,"※設定サポートはPowerとStorageでサポート内容が異なりますので、ご注意ください。"]
[null,null,null,null,null,null,null,null,null,null,null,null,null,"Power：",null,"https://www.ibm.com/docs/ja/announcements/q2-2020-si-release-additional-hw-products"]
[null,null,null,null,null,null,null,null,null,null,null,null,null,"Storage：",null,"https://www.ibm.com/docs/ja/announcements/gl-si-storage-52k-72k-mss-3q-2021?region=AP"]
[null,"SW",null,"主要ライセンス\nOption Edition等/数量",null,null,null,"Rational Development Studio for i (WDS)",null,null,null,null,null,"Rational Developer for i (RDW)",null,null,null,null,null,"Backup Recovery and Media Services for i (BR2)"]
[null,null,null,null,null,null,null,"要選択",null,null,null,"要選択",null,"要選択",null,null,null,"要選択",null,"要選択",null,null,null,"OSと同数"]
[null,null,null,null,null,null,null,"PowerHA",null,null,null,null,null,"※他に必要なSWがある場合はご要望欄に記入ください。"]
[null,null,null,null,null,null,null,"要選択",null,null,null,"要選択"]
[null,"希望する成果物\n (config以外、簡易価格資料等)",null,null,null,null,null,null,null,null,null,null,null,null,null,null,null,"希望する成果物を左欄に記入ください。\n成果物が多いほど回答まで時間が必要です。"]
[null,"連絡事項",null,null,null,null,null,"◆AIX/Linux/Storageの依頼はこのシートとは別に用意している専用の要件シートに記入いただき、弊社にご依頼ください。\n◆配送費は、Premiumで構成しております。\n◆リプレース構成時WDSとRDWは移行構成を前提としております。\n★OS移転のプロセスが変更になり原則OS移転はしない前提で作成いたします。OS移転をご希望の際はご要望欄にご記載ください。\n★OS移転は既存SWMA契約がある前提です。"]

{"sheet":"構成シート","index":1,"n_rows":82,"n_cols":16,"rows_kept":82,"cut":false,"hidden":false,"merged":[[81,1,81,2],[41,1,41,2],[21,3,21,4],[19,1,19,2],[19,3,19,4],[45,1,47,1],[59,1,59,2],[58,1,58,2],[56,1,56,2],[39,1,39,2],[42,1,42,2],[40,1,40,2],[20,3,20,4],[23,3,23,4],[79,1,79,2],[72,1,72,2],[3,1,3,2],[7,1,7,2],[3,3,3,4],[5,1,5,2],[17,1,17,2],[9,3,9,4],[10,3,10,4],[10,1,10,2],[16,3,16,4],[12,3,12,4],[17,3,17,4],[11,3,11,4],[13,3,13,4],[9,1,9,2],[4,1,4,2],[14,3,14,4],[0,3,0,4],[1,3,1,4],[2,3,2,4],[6,3,6,4],[8,3,8,4],[5,3,5,4],[7,3,7,4],[78,1,78,2],[77,1,77,2],[73,1,73,2],[76,1,76,2],[74,1,74,2],[75,1,75,2],[18,1,18,2],[18,3,18,4],[71,1,71,2],[57,1,57,2],[69,1,69,3],[70,1,70,2],[22,3,22,4]]}
[]
[null,"モデル ",null,"要選択"]
[null,"プロセッサー・カードの種類　機械G",null,"要選択"]
[null,"HW機械グループ",null,{"$f":"IF(AND(OR(LEFT($D$2,4)=\"1014\",LEFT($D$2,4)=\"1012\"),OR(LEFT($D$3,2)=\"4C\",LEFT($D$3,2)=\"1C\")),\"P05\",HLOOKUP($D$2,メンテナンス用!$P$61:$V$81,2,FALSE))","v":{"$error":"#N/A"}}]
[null,"Primary Machine",null,{"$f":"案件情報!I12","v":"必須"},{"$f":"案件情報!L12","v":"必須"}]
[null,"1CoreあたりのCPW値(※1)",null,{"$f":"INDEX(CPW表!$AK$4:$AK$316,MATCH(LEFT($D$2,4)&$D$3&$D$8&\"core\",INDEX(CPW表!$AF$4:$AF$316&CPW表!$AG$4:$AG$316&CPW表!$AH$4:$AH$316,),0))","v":{"$error":"#VALUE!"}}]
[null,"プロセッサー・カードの枚数",null,"要選択"]
[null,"Core総数",null,{"$f":"LEFT(D3,SEARCH(\"core\",D3,1)-1)*D7","v":{"$error":"#VALUE!"}}]
[null,"プロセッサー・ライセンス数(IBM i)",null,{"$f":"D31","v":0}]
[null,"ユーザー数 (IBM i)",null,"要選択"]
[null,"エンタープライズ・エネーブルメント数",null,"要選択"]
[{"$f":"案件情報!H8","v":"要選択"},"NonLPAR/LPAR",null,{"$f":"案件情報!F7","v":"要選択"}]
[null,"コンソール",null,"要選択"]
[null,"HMC&TF5",null,"要選択"]
[null,"筐体タイプ",null,"要選択"]
[null,"一次言語","二次言語","日本語 漢字","不要"]
[null,"電源",null,{"$f":"案件情報!H13","v":"要選択"}]
[null,"CPU Deconfiguration",null,"不要"]
[null,"メディア出荷",null,"有"]
[null,"ｉOS プリロード",null,"要選択"]
[null,"元マシンのモデル",null,{"$f":"案件情報!Q4","v":0}]
[{"$f":"案件情報!H11","v":"要選択"},"シリアルNO.",null,{"$f":"案件情報!W4","v":0}]
[null,"ITL 月数",{"$f":"INDEX(ITL,,MATCH(D2,モデル3_要件シート,))","v":{"$error":"#N/A"}},"要選択"]
[null,"ITL 対象(構成担当者欄)",null,"選択不要"]
[null,"(※1)最大CPWをコア数で単純割りした1コア分の参考CPW値です。/ (※2)メモリー合計の2割程度がHypervisor用として使用されるため各区画に割り当てできる容量は表示より減ります。\n"]
[null,null,null,null,"※記入方法は｢構成シート (入力サンプル)｣を参照ください(クリック)"]
[null,"区画の情報",null,"合計","P01\n(NonLPAR)",{"$f":"COLUMN()-4","v":2},3,4,5,6,7,8,9,10,"DLPAR\n(Switch)","備考"]
[null,"区画名"]
[null,"OS",null,null,"i7.5"]
[null,"メモリー(GB) ※2",null,{"$f":"SUM(E30:O30)","v":0}]
[null,"プロセッサー数","IBM i　",0]
[{"$f":"IF(COUNTA(E32:O32)>0,\"\",\"1\")","v":""},"CPW値(※1)",null,{"$error":"#VALUE!"},{"$f":"$D$6*E31","v":{"$error":"#VALUE!"}},{"$f":"$D$6*F31","v":{"$error":"#VALUE!"}},{"$error":"#VALUE!"},{"$error":"#VALUE!"},{"$error":"#VALUE!"},{"$error":"#VALUE!"},{"$error":"#VALUE!"},{"$error":"#VALUE!"},{"$error":"#VALUE!"},{"$error":"#VALUE!"},{"$error":"#VALUE!"}]
[{"$f":"IF(COUNTA(E33:O33)>0,\"\",\"1\")","v":"1"},"プロセッサー数","VIOS　",0]
[{"$f":"IF(COUNTA(E34:O34)>0,\"\",\"1\")","v":"1"},"プロセッサー数","AIX　",0]
[{"$f":"IF(COUNTA(E35:O35)>0,\"\",\"1\")","v":"1"},"プロセッサー数","Linux　",0]
[{"$f":"IF(COUNTA($E$37:$O$38)>0,\"\",\"1\")","v":"1"},"プロセッサー数別ライセンス",null,"合計",{"$f":"COLUMN()-4","v":1},{"$f":"F27","v":2},{"$f":"G27","v":3},4,5,6,7,8,9,10,"DLPAR","備考"]
[{"$f":"IF(COUNTA($E$37:$O$37)>0,\"\",\"1\")","v":"1"},"PowerHA for i","IBM i　",{"$f":"ROUNDUP(SUMIF(E37:O37,\"〇\",E31:O31),0)","v":0}]
[{"$f":"IF(COUNTA($E$38:$O$38)>0,\"\",\"1\")","v":"1"},"PowerHA","AIX　",{"$f":"ROUNDUP(SUMIF(E38:O38,\"〇\",E34:O34),0)","v":0}]
[{"$f":"IF(COUNTA($E$41:$O$43)>0,\"\",\"1\")","v":"1"},"内蔵NVMe","※個数指定","合計",{"$f":"COLUMN()-4","v":1},{"$f":"F27","v":2},3,4,5,6,7,8,9,10,"DLPAR","備考"]
[{"$f":"IF(COUNTA($E$41:$O$43)>0,\"\",\"1\")","v":"1"},"保護レベル(※OS Mirrorのみ)",null,null,"OS Mirror"]
[{"$f":"IF(COUNTA(E41:O41)>0,\"\",\"1\")","v":"1"},"800GB",null,{"$f":"SUM(E41:O41)","v":0}]
[{"$f":"IF(COUNTA(E42:O42)>0,\"\",\"1\")","v":"1"},"1.6TB",null,{"$f":"SUM(E42:O42)","v":0}]
[{"$f":"IF(COUNTA(E43:O43)>0,\"\",\"1\")","v":"1"},"3.2TB",null,{"$f":"SUM(E43:O43)","v":0}]
[{"$f":"IF(COUNTA($E$46:$O$48)>0,\"\",\"1\")","v":"1"},"外部ストレージ (FS 5k,7k,9k等）",null,"合計",{"$f":"E39","v":1},{"$f":"F27","v":2},3,4,5,6,7,8,9,10,"DLPAR","備考"]
[{"$f":"IF(COUNTA($E$46:$O$48)>0,\"\",\"1\")","v":"1"},"ディスク保護レベル",null,null,"選択"]
[{"$f":"IF(COUNTA(E46:O46)>0,\"\",\"1\")","v":"1"},"モデル選択","ディスク種類選択",{"$f":"SUM(E46:O46)","v":0}]
[{"$f":"A46","v":"1"},null,"キャッシュ選択","-"]
[{"$f":"A46","v":"1"},null,"インタフェース選択","-"]
[{"$f":"IF(COUNTA($E$50:$O$55)>0,\"\",\"1\")","v":"1"}," テープ・DVD","接続","合計",{"$f":"E39","v":1},{"$f":"F27","v":2},3,4,5,6,7,8,9,10,"DLPAR","備考"]
[{"$f":"IF(COUNTA(E50:O50)>0,\"\",\"1\")","v":"1"},"ポータブルDVD","USB",{"$f":"SUM(E50:O50)","v":0}]
["1","7226-1U3",null,0]
["1","└LTO8","SAS",0]
["1","TS4300基本",null,0]
["1","└LTO8","SAS",0]
["1","└LTO9","SAS",0]
[{"$f":"IF(COUNTA($E$57:$O$60)>0,\"\",\"1\")","v":"1"}," LAN","※ポート数指定","合計",{"$f":"E39","v":1},{"$f":"F27","v":2},3,4,5,6,7,8,9,10,"DLPAR","備考"]
[{"$f":"IF(COUNTA(E57:O57)>0,\"\",\"1\")","v":"1"},"1GbE (RJ45)",null,{"$f":"SUM(E57:O57)","v":0}]
[{"$f":"IF(COUNTA(E58:O58)>0,\"\",\"1\")","v":"1"},"1/10GbE(RJ45)",null,{"$f":"SUM(E58:O58)","v":0}]
[{"$f":"IF(COUNTA(E59:O59)>0,\"\",\"1\")","v":"1"},"10GbE SFP",null,{"$f":"SUM(E59:O59)","v":0}]
[{"$f":"IF(COUNTA(E60:O60)>0,\"\",\"1\")","v":"1"},"25GbE SFP",null,{"$f":"SUM(E60:O60)","v":0}]
[{"$f":"IF(COUNTA($E$62:$O$64)>0,\"\",\"1\")","v":"1"},"ファイバーチャネル　※枚数指定",null,"合計",{"$f":"E39","v":1},{"$f":"F27","v":2},3,4,5,6,7,8,9,10,"DLPAR","備考"]
[{"$f":"IF(COUNTA(E62:O62)>0,\"\",\"1\")","v":"1"},"外部DISK用","32Gb 2port",{"$f":"SUM(E62:O62)","v":0}]
[{"$f":"IF(COUNTA(E63:O63)>0,\"\",\"1\")","v":"1"},"テープ用","32Gb 2port",{"$f":"SUM(E63:O63)","v":0}]
[{"$f":"IF(COUNTA(E64:O64)>0,\"\",\"1\")","v":"1"},"VTL用","32Gb 2port",{"$f":"SUM(E64:O64)","v":0}]
[{"$f":"IF(COUNTA($E$66:$O$67)>0,\"\",\"1\")","v":"1"},"SANスイッチ","帯域","合計",{"$f":"E39","v":1},{"$f":"F27","v":2},3,4,5,6,7,8,9,10,"DLPAR","備考"]
[{"$f":"IF(COUNTA(E66:O66)>0,\"\",\"1\")","v":"1"},"SAN24B","16Gbps",{"$f":"SUM(E66:O66)","v":0},null,null,null,null,null,null,null,null,null,null,null,"※ケーブルはアクティブポート数分構成"]
[{"$f":"IF(COUNTA(E67:O67)>0,\"\",\"1\")","v":"1"}]
[]
[]
[null,"消費スロット数（SDC構成担当者用欄）"]
[null,"アダプター種類",null,"合計枚数",{"$f":"E39","v":1},{"$f":"F27","v":2},3,4,5,6,7,8,9,10,{"$f":"O39","v":"DLPAR"}]
[null,"CEC NVMeコントローラー",null,{"$f":"SUM(E72:O72)","v":0},null,null,null,null,null,null,null,null,null,null,null,"CEC NVMeコントローラー"]
[null,"SAS",null,0,null,null,null,null,null,null,null,null,null,null,null,"SAS"]
[null,"LAN 1/10G(RJ45)",null,0,null,null,null,null,null,null,null,null,null,null,null,"LAN 1/10G(RJ45)"]
[null,"LAN 10G(SR)",null,0,null,null,null,null,null,null,null,null,null,null,null,"LAN 10G(SR)"]
[null,"USB",null,0,null,null,null,null,null,null,null,null,null,null,null,"USB"]
[null,"Fibre",null,0,null,null,null,null,null,null,null,null,null,null,null,"Fibre"]
[null,null,null,0]
[null,"合計",null,{"$f":"SUM(D72,D73,D74,D75,D76,D77,D78)","v":0},{"$f":"SUM(E72,E73,E74,E75,E76,E77,E78)","v":0},0,0,0,0,0,0,0,0,0,0]
[null,"モデル別PCI最大搭載枚数",null,{"$f":"INDEX(モデル別最大スロット数,,MATCH(D2,モデル3_要件シート,))","v":{"$error":"#N/A"}},"←※ドロワー接続用の光アダプター数を除く枚数です。（※S1014の4コア構成は最大5枚）"]
[]
[null,"ドロワー接続アダプター枚数"]

{"sheet":"構成シート (入力サンプル)","index":2,"n_rows":189,"n_cols":3,"rows_kept":189,"cut":false,"hidden":false,"merged":[[5,2,7,2],[188,0,223,0],[11,0,36,0],[39,0,71,0],[75,0,107,0],[112,0,144,0],[149,0,181,0]]}
[null,"※構成シートに戻る"]
[]
[null,"サンプル（下記をクリック）","論理区画(LPAR)の作成方法"]
[null,"NonLPAR","1区画で利用"]
[null,"物理LPAR","物理ディスクを利用"]
[null,"仮想LPAR （ホスト兼本番区画）","IBM i をホストとして仮想ディスクを利用"]
[null,"仮想LPAR （ホスト専用区画）"]
[null,"仮想LPAR （仮想LPAR_VPM ※HMCなし）"]
[null,"VIOS","VIOS をホストとして仮想ディスクを利用"]
[]
[]
["戻る"]
[]
[]
[]
[]
[]
[]
[]
[]
[]
[]
[]
[]
[]
[]
[]
[]
[]
[]
[]
[]
[]
[]
[]
[]
[]
[]
[]
["戻る"]
[]
[]
[]
[]
[]
[]
[]
[]
[]
[]
[]
[]
[]
[]
[]
[]
[]
[]
[]
[]
[]
[]
[]
[]
[]
[]
[]
[]
[]
[]
[]
[]
[]
[]
[]
["戻る"]
[]
[]
[]
[]
[]
[]
[]
[]
[]
[]
[]
[]
[]
[]
[]
[]
[]
[]
[]
[]
[]
[]
[]
[]
[]
[]
[]
[]
[]
[]
[]
[]
[]
[]
[]
[]
["戻る"]
[]
[]
[]
[]
[]
[]
[]
[]
[]
[]
[]
[]
[]
[]
[]
[]
[]
[]
[]
[]
[]
[]
[]
[]
[]
[]
[]
[]
[]
[]
[]
[]
[]
[]
[]
[]
["戻る"]
[]
[]
[]
[]
[]
[]
[]
[]
[]
[]
[]
[]
[]
[]
[]
[]
[]
[]
[]
[]
[]
[]
[]
[]
[]
[]
[]
[]
[]
[]
[]
[]
[]
[]
[]
[]
[]
[]
["戻る"]

{"sheet":"マスター_要件シート用","index":3,"n_rows":12,"n_cols":2,"rows_kept":12,"cut":false,"hidden":true,"merged":[]}
[]
["保守契約タイプ","ExpertCare"]
[]
["年数","5年"]
[null,"4年"]
[null,"3年"]
[]
[]
["サービスレベル","要選択"]
[null,"Basic ※9x5"]
[null,"Advanced"]
[null,"Premium"]

{"sheet":"メンテナンス用","index":4,"n_rows":95,"n_cols":28,"rows_kept":95,"cut":false,"hidden":true,"merged":[[2,8,2,19]]}
[]
[]
["ディスク","ディスク保護","外部ストレージ",null,"テープ装置","テープ接続","Fibre種類","導入場所","外部ストレージ"]
["283GB (15k)","Dev.Lv.","モデル選択","V7000","RDX(内蔵)","SAS","16Gb 2port","CEC","モデル選択","FS5015","FS5045","FS5300","FS7300","FS9500","FS5200(24.12.31WD)","V7000_724_10.17WD","V7000F_AF6_8.15WD","FS900_11.20WD","FS9110_10.17WD","FS9150_10.17WD","FS5100","FS7200","FS9200","FS5035"]
["571GB (10k)","IOA Lv.","V5010E","NVMe","7226-1U3","FIBRE","32Gb 2port","EXP24Sx",null,"外部ディスク玉"]
["571GB (15k)","仮想","V5030E","Flash/SSDs","TS2270(24.6.30WD)","USB(RDX)","32Gb 4port",null,"ディスク種類選択","ディスク種類選択","ディスク種類選択","ディスク種類選択","ディスク種類選択","ディスク種類選択","ディスク種類選択","ディスク種類選択","ディスク種類選択","ディスク種類選択","ディスク種類選択","ディスク種類選択","ディスク種類選択","ディスク種類選択","ディスク種類選択","ディスク種類選択"]
["856GB (10k)※5/19WD","RAID5","V5100","HDD","TS2280",null,"64Gb 2port",null,null,"Flash_SSDｓ","Flash_SSDｓ","FCM","FCM","FCM","FCM","NVMe基本筐体","Flash_SSDｓ","FlashModule","NVMe_基本筐体","NVMe_基本筐体","NVMe基本筐体","FCM","FCM","Flash_SSDｓ"]
["1.1TB (10k)※5/19WD","RAID6","V7000",null,"TS2290",null,null,null,null,"HDD","HDD","FlashDrive","FlashDrive","FlashDrive","FlashDrive","Flash_SSDｓ",null,null,"FlashDrive_拡張筐体","FlashDrive_拡張筐体","FlashDrive_拡張筐体","FlashDrive","FlashDrive","HDD"]
["1.7TB (10k)※5/19WD","LVM(SW)","FS9110","V7000F","TS2900",null,null,null,null,null,null,"HDD(拡張筐体のみ)","HDD(拡張筐体のみ)",null,"HDD(拡張筐体のみ)","HDD",null,null,null,null,"HDD","HDD(拡張筐体のみ)"]
["387GB SSD","RAID10(HW)","FS9150","Flash/SSDs","TS4300基本"]
["775GB SSD",null,"FS900",null,"TS4300拡張",null,null,null,"キャッシュ選択","キャッシュ選択","キャッシュ選択","キャッシュ選択","キャッシュ選択","キャッシュ選択","キャッシュ選択"]
["931GB RI SSD",null,null,"FS900","└LTO9",null,null,null,null,"32GB","32GB","64GB (一部機能使用不可)","256GB","1024GB","64GB"]
["1.55TB SSD",null,null,"FlashModule","└LTO8",null,null,null,null,"64GB","64GB(重複排除必須）","256GB","768GB","2048GB","256GB"]
["1.86TB SSD","外部ストレージ保護","外部ディスク",null,"└LTO7(24.6.30WD)",null,null,null,null,null,null,"512GB","1536GB","3072GB","512GB"]
["3.72TB RI SSD","選択","V50x0","FS91x0","└RDX"]
["7.45TB RI SSD","DRAID1","ディスク種類選択","NVMe",null,null,null,null,"インタフェース選択","インタフェース選択","インタフェース選択","インタフェース選択","インタフェース選択","インタフェース選択","インタフェース選択"]
["AIX,VIOS用 300GB","DRAID5","Flash/SSDs","Flash/SSDs",null,null,null,null,null,"16G FC","16G FC","32G FC","32G FC","32G FC","16G FC"]
["AIX,VIOS用 600GB","DRAID6","HDD",null,null,null,null,null,null,"1G iSCSI","1G iSCSI","64G FC","64G FC","64G FC","32G FC"]
["AIX,VIOS用 600GB (10k)",null,null,null,null,null,null,null,null,"10G iSCSI","10G iSCSI","10G iSCSI","25GbE(iWARP)","25GbE(iWARP)","10G iSCSI"]
["AIX,VIOS用 900GB (10k)※5/19WD",null,"V5100",null,null,null,null,null,null,"12G SAS","12G SAS","25/10GbE(オンボード)","100GbE","100GbE","25GbE(iWARP)"]
["AIX,VIOS用 1.2TB (10k)※5/19WD",null,"NVMe",null,null,null,null,null,null,null,null,null,"12G SAS",null,"12G SAS"]
["AIX,VIOS用 1.8TB (10k)※5/19WD","T-RAID5","Flash/SSDs"]
["AIX,VIOS用 387GB SSD","T-RAID6","HDD"]
["AIX,VIOS用 931GB RI SSD"]
["AIX,VIOS用 1.55TB SSD",null,"V5100F"]
["AIX,VIOS用 1.86TB SSD",null,"NVMe"]
["AIX,VIOS用 3.72TB RI SSD",null,"Flash/SSDs"]
["AIX,VIOS用 7.45TB RI SSD"]
[]
[]
[]
["NVMe"]
["800GB"]
["1.6TB"]
["3.2TB"]
["6.4TB"]
["15.3TB (Mainstream)"]
[]
[]
[]
[]
[]
[]
[]
["イーサネット","通信","その他","コンソール","ラック","OS/バージョン","SWMA","メディア","Web Query","電源","一次言語",null,"二次言語"]
["1GbE(RJ45)","V.24","Graphic Adapter(※2021/12/14営業終了)","要選択","要選択","←","1年","有","WQE","要選択","日本語 漢字",null,"不要"]
["1/10GbE(RJ45)","モデム (※2020/12末営業終了)","SANスイッチ","既存同等","42U ","i7.5","2年","無（ESD）","WQS","100V","日本語ユニバーサル",null,"日本語 漢字"]
["10GbE SFP","V.35 (※2021/3/5営業終了)",null,"LANコンソール","36U ","i7.4","3年",null,"WQB","200V","英語U/C DBCS",null,"日本語ユニバーサル"]
["25GbE SFP","X.21 (※2021/3/5営業終了)",null,"HMCコンソール","ラック無し","VIOS","4年",null,"WQR",null,"英語U/L DBCS",null,"英語U/C DBCS"]
["100GbE SFP",null,null,"LANコンソール(VPM)","デスクサイド","AIX 7.3","5年",null,null,null,"英語U/L SBCS",null,"英語U/L DBCS"]
[null,null,null,null,null,"AIX 7.2",null,null,null,null,"他（記入）",null,"英語U/L SBCS"]
[null,null,null,null,null,"RHEL ",null,null,null,null,null,null,"英語三種"]
[null,null,null,null,null,"SLES 15",null,null,null,null,null,null,"他（記入）"]
[]
[]
[null,null,null,null,null,"ライセンス体系"]
[null,null,null,null,null,"要選択"]
[null,null,null,null,null,"サブスクリプション"]
[null,null,null,null,null,"永続ライセンス"]
["モデル"]
["720：8202-E4D(W/D)","740：8205-E6D(W/D)","750：8408-E8D(W/D)","760：9109-RMD(W/D)","710：8231-E1D(W/D)","730：8231-E2D(W/D)","814:8286-41A(W/D)","824:8286-42A(W/D)","914:9009-41A(W/D)","924:9009-42A(W/D)","914:9009-41G",null,"924:9009-42G","922:9009-22G","980:9080-M9S","1012:9028-21B","1014:9105-41B","1022:9105-22B(1022s)","1022:9105-22A","1024:9105-42A(P20)","1024:9105-42A(P30)","1080:9080-HEX","822:8284-22A(W/D)","812:8284-21A(W/D)","870:9119-MME(W/D)","880:9119-MHE(W/D)","870C:9080-MME(W/D)","880C:9080-MHE(W/D)"]
["P10","P20","P20","P30","P10","P20","P10","P20","P10","P20","P10",null,"P20","P10","P30","P10","P10","P10","P10","P20","P30","P30","P10","P05","P30","P30","P30","P30"]
["P05",null,null,null,"P05",null,"P05",null,"P05",null,"P05",null,null,null,null,"P05","P05"]
["6core 3.6GHz P7+","6core 4.2GHz P7+","8core 3.5GHz P7+","12core 3.136GHz P7+","4core 3.6GHz P7+","4core 4.3GHz P7+","4core 3.02GHz P8","6core 3.89GHz P8","4core 2.3-3.8GHz P9","8core 3.8-4.0GHz P9","4core 2.3-3.8GHz P9",null,"8core 3.8-4.0GHz P9","8core 3.4-3.9GHz P9","24core 3.58-3.9GHz P9","要選択","要選択","要選択","要選択","要選択","要選択","要選択","6core 3.89GHz P8","1core 3.02GHz P8","32core 4.02GHz P8","32core 4.35GHz P8","32core 4.02GHz P8","32core 4.35GHz P8"]
["4core 3.6GHz P7+","8core 3.6GHz P7+","8core 4.0GHz P7+","12core 3.416GHz P7+","6core 4.2GHz P7+","6core 4.2GHz P7+","6core 3.02GHz P8","8core 4.15GHz P8","6core 2.3-3.8GHz P9","10core 3.5-3.9GHz P9","6core 2.3-3.8GHz P9",null,"10core 3.5-3.9GHz P9","10core 2.9-3.8GHz P9","32core 3.9-4.0GHz P9","1core 3.00-3.90GHz P10","4core 3.00-3.90GHz P10","4core 3.00-3.90GHz P10","12core 2.90-4.00GHz P10","12core 3.40-4.00GHz P10","16core 3.10-4.00GHz P10","40core 3.65-3.9GHz P10","8core 4.15GHz P8","4core 3.02GHz P8","40core 4.19GHz P8","48core 4.00GHz P8",null,"40core 4.19GHz P8"]
["8core 3.6GHz P7+","8core 4.2GHz P7+",null,null,"8core 4.2GHz P7+","8core 3.6GHz P7+","8core 3.72GHz P8","12core 3.52GHz P8","8core 2.8-3.8GHz P9","11core 3.45-3.9GHz P9","8core 2.8-3.8GHz P9",null,"11core 3.45-3.9GHz P9",null,"40core 3.7-3.9GHz P9","4core 3.00-3.90GHz P10","8core 3.00-3.90GHz P10","8core 3.00-3.90GHz P10","16core 2.75-4.00GHz P10",null,"24core 2.75-3.90GHz P10","48core 3.6-4.15GHz P10","10core 3.42GHz P8",null,null,null,null,"48core 4.00GHz P8"]
[null,null,null,null,null,"8core 4.2GHz P7+",null,null,null,"12core 3.4-3.9GHz P9",null,null,"12core 3.4-3.9GHz P9",null,"44core 3.58-3.9GHz P9","8core 3.00-3.90GHz P10",null,null,"20core 2.45-3.90GHz P10",null,null,"60core 3.55-4.0GHz P10"]
[null,null,null,null,null,null,null,null,null,null,null,null,null,null,"48core 3.55-3.9GHz P9"]
[]
[null,null,null,null,null,null,null,null,null,null,null,null,null,null,null,"30日(無償)＋","30日(無償)＋","30日(無償)＋","30日(無償)＋","30日(無償)＋","90日(無償)＋","90日(無償)＋"]
[]
[]
[null,null,null,null,null,null,null,null,null,null,null,null,null,null,null,"ソケット","ソケット","ソケット","ソケット","ソケット","ソケット","ソケット"]
[null,null,null,null,null,null,null,null,null,null,null,null,null,null,null,"要選択","要選択","要選択","要選択","要選択","要選択","要選択"]
[null,null,null,null,null,null,null,null,null,null,null,null,null,null,null,1,1,2,1,1,1,1]
[null,null,null,null,null,null,null,null,null,null,null,null,null,null,null,null,null,null,2,2,2,2]
[null,null,null,null,null,null,null,null,null,null,null,null,null,null,null,null,null,null,null,null,null,3]
[null,null,null,null,null,null,null,null,null,null,null,null,null,null,null,null,null,null,null,null,null,4]
[]
["最大スロット数","最大スロット数","最大スロット数","最大スロット数","最大スロット数","最大スロット数","最大スロット数","最大スロット数","最大スロット数","最大スロット数","最大スロット数",null,"最大スロット数","最大スロット数","最大スロット数","最大スロット数","最大スロット数","最大スロット数","最大スロット数","最大スロット数","最大スロット数","最大スロット数","最大スロット数","最大スロット数","最大スロット数","最大スロット数","最大スロット数","最大スロット数"]
[null,null,null,null,null,null,null,null,13,26,13,null,26,19,192,4,10,20,20,30,30,192]
[]
["ユーザー","プロセッサー","モデル","対話型"]
["824:8286-42A","824:8286-42A","要選択","814:8286-41A"]
["924:9009-42A","924:9009-42A","既存同等","822:8284-22A"]
["870:9119-MME","870:9119-MME","1012:9028-21B","914:9009-41A"]
["880:9119-MHE","880:9119-MHE","1014:9105-41B","922:9009-22G"]
["870C:9080-MME","870C:9080-MME","1022:9105-22B(1022s)","914:9009-41G"]
["880C:9080-MHE","880C:9080-MHE","1022:9105-22A","1012:9028-21B"]
["980:9080-M9S","980:9080-M9S","1024:9105-42A(P20)","1014:9105-41B"]
["924:9009-42G","924:9009-42G","1024:9105-42A(P30)","1022:9105-22B(1022s)"]
["1024:9105-42A(P20)","1022:9105-22A","1080:9080-HEX","1022:9105-22A"]
["1024:9105-42A(P30)","1024:9105-42A(P20)"]
["1080:9080-HEX","1024:9105-42A(P30)"]
[null,"1080:9080-HEX"]

{"sheet":"CPW表","index":5,"n_rows":304,"n_cols":103,"rows_kept":304,"cut":false,"hidden":true,"merged":[[3,42,7,42],[3,51,6,51],[3,56,25,56],[7,51,9,51],[8,42,19,42],[10,51,11,51],[12,51,17,51],[20,42,22,42],[23,42,45,42],[26,56,29,56],[27,51,28,51],[29,51,36,51],[17,79,17,80],[17,81,17,82],[17,83,17,84],[17,85,17,86],[18,51,26,51],[72,42,76,42],[145,31,149,31],[150,31,155,31],[30,56,37,56],[37,51,38,51],[38,56,65,56],[39,51,49,51],[46,42,71,42],[50,51,53,51],[54,51,59,51]]}
[]
[null,null,"Power10",null,null,null,null,null,null,null,null,null,"Power9",null,null,null,null,null,null,null,null,null,"Power8",null,null,null,null,null,null,null,null,null,"Power7",null,null,null,null,null,null,null,null,null,"Power6",null,null,null,null,null,null,null,null,"Power5（rPerfのみ）"]
[null,"モデル","プロセッサカード","core数","総CPW値","総rPerf値\nSMT8","CPW/core","rPerf/Core",null,null,null,"モデル","プロセッサカード","core数","総CPW値","総rPerf値\nSMT4","CPW/core","rPerf/Core",null,null,null,"モデル","プロセッサカード","core数","総CPW値","総rPerf値\nSMT4","CPW/core","rPerf/Core",null,null,null,"モデル","プロセッサカード","core数","総CPW値","総rPerf値","CPW/core","rPerf/Core","Chips",null,null,null,"モデル","Core数","Clock","総CPW値","総rPerf値","CPW/Core","rPerf/Core","備考",null,"Model","Processor\n/ #Cores","MHz","rPerf",null,"Model","Processor\n/ #Cores","MHz","rPerf",null,null,null,null,null,null,null,null,null,null,null,null,"Model","CPW","Model","CPW","Model","CPU","CPW","Model","CPU","V3R6","V3R7","V4","Model","CPU","CPW",5250,null,"Model","CPU","CPW",5250,"Model","CPU FC","CPW","対話FC",5250,"ドミノ専用サーバー"]
[null,1012,"1core 3.00-3.90GHz P10","1core",29000,"-",{"$f":"E4/LEFT($D4,SEARCH(\"core\",$D4)-1)","v":29000},{"$error":"#VALUE!"},null,null,null,914,"4core 2.3-3.8GHz P9","4core",52500,60.4,{"$f":"O4/LEFT($N4,SEARCH(\"core\",$N4)-1)","v":13125},15.1,null,null,null,812,"1core 3.02GHz P8","1core",9880,null,{"$f":"IFERROR(Y4/LEFT($X4,SEARCH(\"core\",$X4)-1),\"\")","v":9880},{"$f":"Z4/LEFT($X4,SEARCH(\"core\",$X4)-1)","v":0},null,null,null,710,"4core 3.0GHz P7","4core",23800,45.13,{"$f":"AI4/LEFT($AH4,SEARCH(\"core\",$AH4)-1)","v":5950},11.282500000000001,1,null,null,null,520,1,4.2,4300,8.39,{"$f":"AT4/AR4","v":4300},{"$f":"AU4/AR4","v":8.39},null,null,"JS20 ","PPC970/1 ",1600,1.53,null,"p5-570 ","P5/2",1500,9.1300000000000008,null,null,null,null,null,null,null,null,null,null,null,null,"B10",2.9,"E02",4.5,200,2030,7.3,400,2130,12.3,13.8,13.8,"20S",2010,17.100000000000001,5.5,null,170,2159,73,16,720,2061,240,1500,35,"Model","CPU FC","CPW"]
[null,1012,"4core 3.00-3.90GHz P10","4core",111300,130.4,27825,32.6,null,null,null,914,"6core 2.3-3.8GHz P9","6core",78500,88.5,13083.333333333334,14.75,null,null,null,812,"4core 3.02GHz P8","4core",null,62.5,{"$f":"Y5/LEFT($X5,SEARCH(\"core\",$X5)-1)","v":0},{"$f":"Z5/LEFT($X5,SEARCH(\"core\",$X5)-1)","v":15.625},null,null,null,710,"6core 3.7GHz P7","6core",40900,76.69,6816.666666666667,12.781666666666666,1,null,null,null,null,2,4.2,8300,15.95,4150,7.9749999999999996,null,null,null,"PPC970/2 ",1600,2.65,null,null,"P5/4",1500,18.2,null,null,null,null,null,null,null,null,null,null,null,null,"B20",5.0999999999999996,"E04",5.5,null,2031,11.6,null,2131,18.3,20.6,20.6,"30S",2411,32.299999999999997,9.6,null,null,2160,114,23,null,2062,420,1501,70,270,2422,50]
[null,1012,"8core 3.00-3.90GHz P10","8core",203100,234.2,25387.5,29.274999999999999,null,null,null,914,"8core 2.8-3.8GHz P9","8core",122500,136.5,15312.5,17.0625,null,null,null,814,"4core 3.02GHz P8","4core",39500,62.5,{"$f":"Y6/LEFT($X6,SEARCH(\"core\",$X6)-1)","v":9875},{"$f":"Z6/LEFT($X6,SEARCH(\"core\",$X6)-1)","v":15.625},null,null,null,710,"8core 3.55GHz P7","8core",51800,91.96,6475,11.494999999999999,1,770,"12core 3.72GHz P7","24core",null,2,4.7,9500,20.13,4750,10.065,null,null,null,"PPC970/1 ",2200,1.95,null,null,"P5/8",1500,34.46,null,null,null,null,null,null,null,null,null,null,null,null,"B30",3.8,"E06",7.3,null,2032,16.8,null,2132,24.5,27,27,null,2412,68.5,11.6,null,null,2164,210,29,null,2063,810,1502,120,null,2423,100]
[null,1014,"4core 3.00-3.90GHz P10","4core",106300,129.4,26575,32.35,{"$f":"G7","v":26575},null,null,922,"8core 3.4-3.9GHz P9","8core",68000,160.5,17000,20.0625,68000,null,null,814,"6core 3.02GHz P8","6core",59500,91.1,{"$f":"Y7/LEFT($X7,SEARCH(\"core\",$X7)-1)","v":9916.6666666666661},{"$f":"Z7/LEFT($X7,SEARCH(\"core\",$X7)-1)","v":15.183333333333332},null,null,null,710,"4core 3.6GHz P7+","4core",28400,53.9,7100,13.475,1,null,null,null,null,4,4.2,15600,31.48,3900,7.87,null,null,null,"PPC970/2 ",2200,3.4,null,null,"P5/2",1650,9.86,null,null,null,null,null,null,null,null,null,null,null,null,"B35",4.5999999999999996,"E10",7.6,300,2040,11.6,null,2133,30.6,33.299999999999997,35,null,null,null,null,null,null,2176,319,40,null,2064,1600,1503,240,null,2424,200]
[null,1014,"8core 3.00-3.90GHz P10","8core",205300,254.2,25662.5,31.774999999999999,{"$f":"I7","v":26575},null,null,922,"10core 2.9-3.8GHz P9","10Core",60000,173.5,15000,17.350000000000001,60000,null,null,814,"8core 3.72GHz P8","8core",85500,134.5,{"$f":"Y8/LEFT($X8,SEARCH(\"core\",$X8)-1)","v":10687.5},{"$f":"Z8/LEFT($X8,SEARCH(\"core\",$X8)-1)","v":16.8125},null,null,null,710,"6core 4.2GHz P7+","6core",49400,90.6,8233.3333333333339,15.1,1,null,null,null,null,4,4.7,18300,39.729999999999997,4575,9.9324999999999992,null,null,"JS21 ","PPC970+/2 ",2700,5.31,null,null,"P5/4",1650,19.66,null,null,null,null,null,null,null,null,null,null,null,null,"B40",5.2,"E20",9.6999999999999993,null,2041,16.8,500,2140,18.7,21.4,21.4,null,null,null,null,null,null,2183,319,67,null,null,null,1504,560,null,2452,100]
[null,1022,"4core 3.00-3.90GHz P10","8core",198200,129.4,{"$f":"E9/LEFT($D9,SEARCH(\"core\",$D9)-1)","v":24775},16.175000000000001,{"$f":"I8","v":26575},null,null,922,"8core 3.4-3.9GHz P9","16core",68000,160.5,17000,10.03125,68000,null,null,822,"6core 3.89GHz P8","6core",{"$f":"AC9/2*(--SUBSTITUTE(X9,\"core\",\"\"))","v":76500},112.9,{"$f":"IFERROR(Y9/LEFT($X9,SEARCH(\"core\",$X9)-1),\"\")","v":12750},{"$f":"Z9/LEFT($X9,SEARCH(\"core\",$X9)-1)","v":18.816666666666666},25500,"***",null,710,"8core 4.2GHz P7+","8core",64500,115.5,8062.5,14.4375,1,null,null,null,550,2,3.5,7750,15.85,3875,7.9249999999999998,null,null,null,"PPC970+/4 ",2500,8.7200000000000006,null,null,"P5/8",1650,37.22,null,null,null,null,null,null,null,null,null,null,null,null,"B45",6.5,"E25",11.8,null,2042,21.1,null,2141,26.9,30.7,30.7,null,null,null,null,null,null,2289,50,15,null,null,null,1505,1050,null,2454,240]
[null,1022,"8core 3.00-3.90GHz P10","8core",null,254.2,{"$f":"I7","v":26575},31.774999999999999,{"$f":"I9","v":26575},null,null,922,"10core 2.9-3.8GHz P9","20Core",60000,173.5,15000,8.6750000000000007,60000,null,null,822,"6core 3.89GHz P8","12core",153000,220.2,{"$f":"Y10/LEFT($X10,SEARCH(\"core\",$X10)-1)","v":12750},18.349999999999998,25500,"***",null,720,"4core 3.0GHz P7","4core",23800,45.13,5950,11.282500000000001,1,null,null,null,null,2,4.2,9200,18.38,4600,9.19,null,null,null,"PPC970+/4 ",2300,8.15,null,null,"P5/12",1650,53.43,null,null,null,null,null,null,null,null,null,null,null,null,"B50",9.3000000000000007,"E35",9.6999999999999993,310,2043,33.799999999999997,null,2142,38.299999999999997,43.9,43.9,null,null,null,null,null,null,2290,73,20,730,2065,560,1506,70,820,2425,100]
[null,1022,"8core 3.00-3.90GHz P10","16core",null,477.8,{"$f":"I8","v":26575},29.862500000000001,26175,null,null,924,"8core 3.8-4.0GHz P9","8core",145500,174.1,{"$f":"O11/LEFT($N11,SEARCH(\"core\",$N11)-1)","v":18187.5},21.762499999999999,null,null,null,822,"8core 4.15GHz P8","8core",108000,155.1,{"$f":"IFERROR(Y11/LEFT($X11,SEARCH(\"core\",$X11)-1),\"\")","v":13500},19.387499999999999,27000,"***",null,720,"6core 3.0GHz P7","6core",34900,65.52,5816.666666666667,10.92,1,null,null,null,null,2,5,10600,21.18,5300,10.59,null,null,"IS-285 ","P5+/2 ",1900,"-- ",null,null,"P5/16",1650,68.400000000000006,null,null,null,null,null,null,null,null,null,null,null,null,"B60",15.1,"E45",13.8,null,2044,56.5,510,2143,66.7,77.7,81.599999999999994,null,null,null,null,null,null,2291,115,25,null,2066,1050,1507,120,null,2426,200]
[null,1022,"12core 2.90-4.00GHz P10","12core",null,null,26575,null,26575,null,null,924,"8core 3.8-4.0GHz P9","16Core",268500,339.5,16781.25,21.21875,null,null,null,822,"8core 4.15GHz P8","16core",216000,302.39999999999998,13500,18.899999999999999,27000,"***",null,720,"8core 3.0GHz P7","8core",46300,81.239999999999995,5787.5,10.154999999999999,1,null,null,null,null,4,3.5,15000,31.27,3750,7.8174999999999999,null,null,null,"P5+/2 ",2100,"-- ",null,null,"P5/2 ",1900,11.16,null,null,null,null,null,null,null,null,null,null,null,null,"B70",20,"E50",18.100000000000001,320,2050,67.5,null,2144,85,104.2,111.5,null,null,null,null,null,null,2292,220,30,null,2067,2000,1508,240,null,2427,300]
[null,1022,"16core 2.75-4.00GHz P10","16core",null,null,26575,null,26575,null,null,924,"10core 3.5-3.9GHz P9","10Core",174500,203.3,17450,20.330000000000002,null,null,null,822,"10core 3.42GHz P8","10core",115000,166.2,{"$f":"IFERROR(Y13/LEFT($X13,SEARCH(\"core\",$X13)-1),\"\")","v":11500},16.619999999999997,23000,"***",null,720,"4core 3.6GHz P7+","4core",28400,53.9,7100,13.475,1,{"$f":"INDEX(AK4:AK148,MATCH($AN6&$AO6&$AP6,INDEX($AF$4:$AF$140&$AG$4:$AG$148&$AH$4:$AH$148,),0))","v":5662.5},{"$f":"INDEX(AL4:AL148,MATCH($AN6&$AO6&$AP6,INDEX($AF$4:$AF$140&$AG$4:$AG$148&$AH$4:$AH$148,),0))","v":11.404166666666667},null,null,4,4.2,18000,36.28,4500,9.07,null,null,"p5-505 ","P5/2 ",1500,9.1300000000000008,null,null,"P5/4 ",1900,22.26,null,null,null,null,null,null,null,null,null,null,null,null,"C04",3.1,"E60",28.1,null,2051,120.3,530,2150,107.1,131.1,148,null,null,null,null,null,null,2385,460,50,null,2068,2890,1509,560,null,2456,120]
[null,1022,"20core 2.45-3.90GHz P10","20core",null,null,26175,null,26175,null,null,924,"10core 3.5-3.9GHz P9","20Core",318000,396.4,15900,19.82,null,null,null,822,"10core 3.42GHz P8","20core",230000,324,11500,16.2,23000,"***",null,720,"6core 3.6GHz P7+","6core",42400,79.5,7066.666666666667,13.25,1,null,null,null,null,4,5,20550,41.81,5137.5,10.452500000000001,null,null,null,"P5/1 ",1650,3.51,null,null,"P5/8 ",1900,42.14,null,null,null,null,null,null,null,null,null,null,null,null,"C06",3.6,"E70",39.200000000000003,null,2052,177.4,null,2151,132.5,162.69999999999999,188.2,null,null,null,null,null,null,2386,460,70,null,null,null,1510,1050,null,2457,240]
[null,1022,"12core 2.90-4.00GHz P10","24core",null,null,26575,null,null,null,null,924,"12core 3.4-3.9GHz P9","24Core",370700,462.7,15445.833333333334,19.279166666666665,null,null,null,824,"6core 3.89GHz P8","6Core",72000,112.9,12000,18.816666666666666,null,null,null,720,"8core 3.6GHz P7+","8core",56300,102.4,7037.5,12.8,1,null,null,null,null,6,3.5,20300,45.04,3383.3333333333335,7.5066666666666668,null,null,null,"P5/2 ",1650,9.86,null,null,"P5/12 ",1900,60.5,null,null,null,null,null,null,null,null,null,null,null,null,"C10",3.9,"E80",69.400000000000006,600,2129,22.7,null,2152,198.7,278.8,319,null,null,null,null,null,null,2388,1090,70,null,null,null,1511,2000,null,2458,380]
[null,1022,"16core 2.75-4.00GHz P10","32core",null,null,26575,null,null,null,null,980,"24core 3.58-3.9GHz P9","24Core",381000,533.70000000000005,15875,22.237500000000001,null,null,null,824,"6core 3.89GHz P8","12Core",130000,220.2,10833.333333333334,18.349999999999998,null,null,null,730,"4core 3.0GHz P7","8core",44600,86.66,5575,10.8325,2,null,null,null,null,6,4.2,23850,52.24,3975,8.706666666666667,null,null,null,"P5+/1 ",1900,4.0999999999999996,null,null,"P5/16 ",1900,77.45,null,null,null,null,null,null,null,null,null,null,null,null,"C20",5.3,"E90",96.7,null,2134,32.5,null,2153,299,459.3,598,null,null,null,null,null,null,2407,30,10,740,2069,3660,1514,120,"アプリケーション・サーバー"]
[null,1022,"20core 2.45-3.90GHz P10","40core",null,null,26175,null,null,null,null,980,"24core 3.58-3.9GHz P9","48Core",759000,1067.3,15812.5,22.235416666666666,null,null,null,824,"8core 4.15GHz P8",4,94500,155.1,{"$error":"#VALUE!"},{"$error":"#VALUE!"},null,null,null,730,"4core 3.7GHz P7","8core",51900,101.62,6487.5,12.702500000000001,2,null,null,null,null,6,5,28800,60.2,4800,10.033333333333333,null,null,null,"P5+/2 ",1900,11.49,null,null,"P5+/2 ",1900,12.27,null,null,null,null,null,null,null,null,null,null,null,null,"C25",6.1,"E95",116.6,null,2135,45.4,null,2162,349.8,509.9,650,null,null,null,null,null,null,2408,60,15,null,2070,4550,1510,1050,"Model","CPU FC","CPW"]
[null,1024,"12core 3.40-4.00GHz P10","12core",312500,null,{"$f":"E18/LEFT($D18,SEARCH(\"core\",$D18)-1)","v":26041.666666666668},null,null,null,null,980,"24core 3.58-3.9GHz P9","72Core",1140000,1601,15833.333333333334,22.236111111111111,null,null,null,824,"8core 4.15GHz P8","16Core",173500,302.39999999999998,10843.75,18.899999999999999,null,null,null,730,"6core 3.7GHz P7","12core",77200,147.24,6433.333333333333,12.270000000000001,2,null,null,null,null,8,3.5,27600,58.8,3450,7.35,null,null,null,"P5+/2 ",2100,12.46,null,null,"P5+/4 ",1900,24.48,null,null,null,null,null,null,null,null,null,null,null,null,"D04",4.4000000000000004,"F02",5.5,null,2136,73.099999999999994,null,null,"V3R6",null,"V3R7",null,"V4",null,null,null,null,2409,120,20,null,null,null,1511,2000,"SB2",2315,7350]
[null,1024,"16core 3.10-4.00GHz P10","16core",383400,null,23962.5,null,null,null,null,980,"24core 3.58-3.9GHz P9","96Core",1522000,2134.6,15854.166666666666,22.235416666666666,null,null,null,824,"12core 3.52GHz P8","24Core",230500,394.2,9604.1666666666661,16.425000000000001,null,null,null,730,"8core 3.55GHz P7","16core",97700,176.57,6106.25,11.035625,2,null,null,null,null,8,4.2,32650,68.2,4081.25,8.5250000000000004,null,null,"p5-505Q ","P5+/4 ",1650,20.25,null,null,"P5+/8 ",1900,46.36,null,null,null,null,null,null,null,null,null,null,null,null,"D06",5.5,"F04",7.3,620,2175,50,"Model","CPU","CPW",5250,"CPW",5250,"CPW",5250,null,null,250,2295,50,15,null,null,null,1512,3660,"SB3",2316,10000]
[null,1024,"24core 2.75-3.90GHz P10","24core",500500,null,20854.166666666668,null,null,null,null,980,"32core 3.9-4.0GHz P9","32Core",508900,722.2,15903.125,22.568750000000001,null,null,null,870,"32core 4.02GHz P8","32core",359000,630.4,11218.75,19.7,null,null,null,730,"4core 4.3GHz P7+","8core",59700,120.4,7462.5,15.05,2,null,null,null,null,8,5,37950,78.599999999999994,4743.75,9.8249999999999993,null,null,null,"P5/1 ",1500,3.25,null,null,"P5+/12 ",1900,66.55,null,null,null,null,null,null,null,null,null,null,null,null,"D10",5.3,"F06",9.6,null,2179,85.6,"40S",2109,24.5,8.4,27,9.4,27,9.4,null,null,null,2296,75,20,null,null,null,1513,4550,null,2318,16500]
[null,1024,"12core 3.40-4.00GHz P10","24core",585100,null,24379.166666666668,null,null,null,null,980,"32core 3.9-4.0GHz P9","64Core",1012000,1444.4,15812.5,22.568750000000001,null,null,null,870,"32core 4.02GHz P8","64core",711000,1260.8,11109.375,19.7,null,null,null,730,"6core 4.2GHz P7+","12core",89200,176.6,7433.333333333333,14.716666666666667,2,null,null,null,560,4,3.6,14100,31.32,3525,7.83,null,null,null,"P5/2 ",1500,9.1300000000000008,null,null,"P5+/16 ",1900,85.2,null,null,null,null,null,null,null,null,null,null,null,null,"D20",6.8,"F10",9.6,null,2180,113.8,null,2110,30.6,12.3,33.299999999999997,13.8,35,14.5,null,null,"S10",2118,45.4,16.2,270,2248,150,1516,0,"Model","CPU FC","CPW","対話FC",5250]
[null,1024,"16core 3.10-4.00GHz P10","32core",725000,null,22656.25,null,null,null,null,980,"32core 3.9-4.0GHz P9","96Core",1521000,2166.6,15843.75,22.568749999999998,null,null,null,870,"40core 4.19GHz P8","40Core",460000,800,11500,20,null,null,null,730,"8core 3.6GHz P7+","16core",104700,197.7,6543.75,12.356249999999999,2,null,null,null,null,8,3.6,27600,57.32,3450,7.165,null,null,null,"P5/1 ",1650,5.24,null,null,"P5+2 ",2200,13.83,null,null,null,null,null,null,null,null,null,null,null,null,"D25",9.6999999999999993,"F20",11.6,null,2181,210,null,2111,52.9,18.3,59.8,20.6,63,21.6,null,null,null,2119,73.099999999999994,24.4,null,2250,370,1517,25,840,2352,"9000-",1540,120]
[null,1024,"24core 2.75-3.90GHz P10","48core",947500,null,19739.583333333332,null,null,null,null,980,"32core 3.9-4.0GHz P9","128Core",2030000,2888.8,15859.375,22.568750000000001,null,null,null,870,"40core 4.19GHz P8","80Core",911000,1599.9,11387.5,19.998750000000001,null,null,null,730,"8core 4.2GHz P7+","16core",117600,223.1,7350,13.94375,2,null,null,null,null,16,3.6,48500,100.3,3031.25,6.2687499999999998,null,null,null,"P5/2 ",1650,9.86,null,null,"P5+/4 ",2200,27.58,null,null,null,null,null,null,null,null,null,null,null,null,"D35",7.4,"F25",13.7,null,2182,464.3,null,2112,77.3,26.9,87.3,30.7,91,32.200000000000003,null,null,"S20",2161,113.8,31,null,2252,950,1518,30,null,null,12000,1541,240]
[null,1080,"40core 3.65-3.9GHz P10","40core",922000,1056.3,{"$f":"E24/LEFT($D24,SEARCH(\"core\",$D24)-1)","v":23050},{"$f":"F24/LEFT($D24,SEARCH(\"core\",$D24)-1)","v":26.407499999999999},null,null,null,980,"40core 3.7-3.9GHz P9","40Core",611300,871.5,15282.5,21.787500000000001,null,null,null,880,"32core 4.35GHz P8","32core",381000,669.4,11906.25,20.918749999999999,null,null,null,740,"4core 3.3GHz P7","4core",25500,48.33,6375,12.0825,1,null,null,null,570,2,3.5,8150,15.85,4075,7.9249999999999998,null,null,null,"P5+/1 ",1900,6.11,null,null,"P5+/8 ",2200,52.21,null,null,null,null,null,null,null,null,null,null,null,null,"D45",10.8,"F35",13.7,640,2237,319,"50S",2120,66.7,18.7,77.7,21.4,81.599999999999994,22.5,null,null,null,2163,210,35.799999999999997,null,2253,2000,1519,50,null,null,null,1542,560]
[null,1080,"40core 3.65-3.9GHz P10","80core",1834000,2112.6,{"$f":"E25/LEFT($D25,SEARCH(\"core\",$D25)-1)","v":22925},{"$f":"F25/LEFT($D25,SEARCH(\"core\",$D25)-1)","v":26.407499999999999},null,null,null,980,"40core 3.7-3.9GHz P9","80Core",1216000,1743,15200,21.787500000000001,null,null,null,880,"32core 4.35GHz P8","64core",755000,1338.8,11796.875,20.918749999999999,null,null,null,740,"4core 3.3GHz P7","8core",47800,92.79,5975,11.598750000000001,2,null,null,null,null,2,4.2,9650,18.38,4825,9.19,null,null,null,"P5+/2 ",1900,11.49,null,null,"P5+/12 ",2200,74.95,null,null,null,null,null,null,null,null,null,null,null,null,"D50",13.3,"F45",17.100000000000001,null,2238,583.29999999999995,null,2121,85,26.9,104.2,30.7,111.5,32.200000000000003,null,null,null,2165,464.3,49.7,null,2431,465,1520,70,null,2353,"12000-",1543,1050]
[null,1080,"40core 3.65-3.9GHz P10","120core",2756000,3168.9,22966.666666666668,26.407500000000002,null,null,null,980,"40core 3.7-3.9GHz P9","120Core",1827000,2614.5,15225,21.787500000000001,null,null,null,880,"32core 4.35GHz P8","96core",1144000,2008.2,11916.666666666666,20.918749999999999,null,null,null,740,"4core 3.7GHz P7","4core",27900,52.93,6975,13.2325,1,null,null,null,null,2,4.4000000000000004,9850,19.079999999999998,4925,9.5399999999999991,null,null,null,"P5+/1 ",2100,6.63,null,null,"P5+/16 ",2200,95.96,null,null,null,null,null,null,null,null,null,null,null,null,"D60",23.9,"F50",27.8,null,2239,998.6,null,2122,106.8,26.9,130.69999999999999,30.7,138,32.200000000000003,null,null,null,2166,759,56.9,null,2432,1070,null,null,null,null,16500,1544,2000]
[null,1080,"40core 3.65-3.9GHz P10","160core",3678000,4225.2,22987.5,26.407499999999999,null,null,null,980,"40core 3.7-3.9GHz P9","160Core",2439000,3486,{"$f":"O27/LEFT($N27,SEARCH(\"core\",$N27)-1)","v":15243.75},21.787500000000001,null,null,null,880,"32core 4.35GHz P8","128core",1523000,2677.6,11898.4375,20.918749999999999,null,null,null,740,"4core 3.7GHz P7","8core",52200,101.62,6525,12.702500000000001,2,null,null,null,null,2,4.7,10800,20.13,5400,10.065,null,null,null,"P5+/2 ",2100,12.46,null,"p5-575 ","P5/16 ",1500,"-- ",null,null,null,null,null,null,null,null,null,null,null,null,"D70",32.299999999999997,"F60",40,650,2240,1794,"53S",2154,132.5,26.9,162.69999999999999,30.7,188.2,32.200000000000003,null,null,null,2170,464.3,49.7,null,2434,2350,null,null,null,null,null,1545,4550]
[null,1080,"48core 3.6-4.15GHz P10","48core",1129000,1315.4,23520.833333333332,27.404166666666669,null,null,null,980,"44core 3.58-3.9GHz P9","44Core",639000,937.7,14522.727272727272,21.311363636363637,null,null,null,880,"48core 4.00GHz P8","48Core",518000,912.6,{"$f":"Y28/LEFT($X28,SEARCH(\"core\",$X28)-1)","v":10791.666666666666},19.012499999999999,null,null,null,740,"6core 3.7GHz P7","6core",41600,76.69,6933.333333333333,12.781666666666666,1,null,null,null,null,2,5,11000,21.16,5500,10.58,null,null,"p5-510Q ","P5+/4 ",1500,18.75,null,null,"P5/8 ",1900,"-- ",null,null,null,null,null,null,null,null,null,null,null,null,"D80",56.6,"F70",57,null,2243,2340,null,2155,198.7,26.9,278.8,30.7,319,32.200000000000003,null,null,null,2177,759,110.7,820,2395,370,1521,35,null,2354,"16500-",1546,10000]
[null,1080,"48core 3.6-4.15GHz P10","96core",2246000,2630.9,23395.833333333332,27.405208333333334,null,null,null,980,"44core 3.58-3.9GHz P9","88Core",1271000,1875.3,14443.181818181818,21.310227272727271,null,null,null,880,"48core 4.00GHz P8","96Core",1034000,1825.1,10770.833333333334,19.011458333333334,null,null,null,740,"6core 3.7GHz P7","12core",77200,147.24,6433.333333333333,12.270000000000001,2,null,null,null,null,4,3.5,16100,31.69,4025,7.9225000000000003,null,null,null,"P5+/4 ",1650,20.25,null,null,"P5+/16 ",1900,"-- ",null,null,null,null,null,null,null,null,null,null,null,null,null,null,"F80",97.1,null,2188,3660,null,2156,299,26.9,459.3,30.7,598,32.200000000000003,null,null,null,2178,759,221.4,null,2396,950,1522,70,null,null,20200,1547,16500]
[null,1080,"48core 3.6-4.15GHz P10","144core",3375000,3946.3,23437.5,27.404861111111114,null,null,null,980,"44core 3.58-3.9GHz P9","132Core",1910000,2813,14469.69696969697,21.310606060606062,null,null,null,880,"48core 4.00GHz P8","144Core",1551000,2737.7,10770.833333333334,19.011805555555554,null,null,null,740,"8core 3.55GHz P7","8core",52600,91.96,6575,11.494999999999999,1,null,null,null,null,4,4.2,19200,36.76,4800,9.19,null,null,"p5-520 ","P5/1 ",1500,3.25,null,null,"P5+/8 ",2200,"-- ",null,null,null,null,null,null,null,null,null,null,null,null,null,null,"F90",127.7,null,2189,4550,null,2157,349.8,26.9,509.9,30.7,650,32.200000000000003,null,null,"S30",2257,319,51.5,null,2397,2000,1523,120,null,null,null,1548,20200]
[null,1080,"48core 3.6-4.15GHz P10","192core",4504000,5261.8,23458.333333333332,27.405208333333334,null,null,null,980,"44core 3.58-3.9GHz P9","176Core",2549000,3750.6,14482.954545454546,21.310227272727271,null,null,null,880,"48core 4.00GHz P8","192Core",2069000,3650.3,10776.041666666666,19.011979166666666,null,null,null,740,"8core 3.55GHz P7","16core",97700,176.57,6106.25,11.035625,2,null,null,null,null,4,4.4000000000000004,19400,38.159999999999997,4850,9.5399999999999991,null,null,null,"P5/2 ",1500,9.1300000000000008,null,"p5-590 ","P5/8 ",1650,41.68,null,null,null,null,null,null,null,null,null,null,null,null,null,null,"F95",148.80000000000001,null,null,null,null,null,null,null,null,null,null,null,null,null,null,2258,583.29999999999995,64,null,2398,3200,1524,240,null,2416,"7800-"]
[null,1080,"60core 3.55-4.0GHz P10","60core",1320000,1578.6,22000,26.31,null,null,null,980,"48core 3.55-3.9GHz P9","48Core",687500,1008.1,14322.916666666666,21.002083333333335,null,null,"Cモデル",870,"32core 4.02GHz P8","32core",359000,630.4,11218.75,19.7,null,null,null,740,"6core 4.2GHz P7+","6Core",49000,90.6,8166.666666666667,15.1,1,null,null,null,null,4,4.7,21200,40.26,5300,10.065,null,null,null,"P5/2 ",1650,9.86,null,null,"P5/16 ",1650,80.86,null,null,null,null,null,null,null,null,null,null,null,null,null,null,"F97",177.4,null,null,null,null,null,null,null,null,null,null,null,null,null,null,2259,998.6,64,null,2435,600,1525,560,null,null,10000]
[null,1080,"60core 3.55-4.0GHz P10","120core",2626000,3157.2,21883.333333333332,26.31,null,null,null,980,"48core 3.55-3.9GHz P9","96Core",1368000,2016.2,14250,21.002083333333335,null,null,null,870,"32core 4.02GHz P8","64core",711000,1260.8,11109.375,19.7,null,null,null,740,"6core 4.2GHz P7+","12Core",91700,176.6,7641.666666666667,14.716666666666667,2,null,null,null,null,4,5,21600,42.32,5400,10.58,null,null,null,"P5+/1 ",1650,3.62,null,null,"P5/24 ",1650,116.29,null,null,null,null,null,null,null,null,null,null,null,null,null,null,null,null,null,null,null,null,null,null,null,null,null,null,null,null,null,null,2260,1794,64,null,2436,1100,1526,1050]
[null,1080,"60core 3.55-4.0GHz P10","180core",3946000,4735.8,21922.222222222223,26.310000000000002,null,null,null,980,"48core 3.55-3.9GHz P9","144Core",2055600,3024.2,14275,21.001388888888886,null,null,"Cモデル",880,"32core 4.35GHz P8","32core",381000,669.4,11906.25,20.918749999999999,null,null,null,740,"8core 3.6GHz P7+","8Core",56300,102.4,7037.5,12.8,1,null,null,null,null,8,3.5,30100,58.95,3762.5,7.3687500000000004,null,null,null,"P5+/2 ",1650,10.15,null,null,"P5/32 ",1650,151.72,null,null,null,null,null,null,null,null,null,null,null,null,null,null,null,null,null,null,null,null,null,null,null,null,null,null,null,null,null,null,2320,998.6,215.1,null,2437,2350,1527,2000,null,2417,"10000-"]
[null,1080,"60core 3.55-4.0GHz P10","240core",5266000,6314.4,21941.666666666668,26.31,null,null,null,980,"48core 3.55-3.9GHz P9","192Core",2743000,4032.3,14286.458333333334,21.001562500000002,null,null,null,880,"32core 4.35GHz P8","64core",755000,1338.8,11796.875,20.918749999999999,null,null,null,740,"8core 3.6GHz P7+","16Core",106500,197.7,6656.25,12.356249999999999,2,null,null,null,null,8,4.2,35500,68.38,4437.5,8.5474999999999994,null,null,null,"P5+/2 ",1900,11.16,null,null,"P5+/8 ",2100,55.74,null,null,null,null,null,null,null,null,null,null,null,null,null,null,null,null,null,null,null,null,null,null,null,null,null,null,null,null,null,null,2321,1794,386.4,null,2438,3700,null,null,null,null,13200]
[null,null,null,null,null,null,null,null,null,null,null,null,null,null,null,null,null,null,null,null,null,880,"32core 4.35GHz P8","96core",1144000,2008.2,11916.666666666666,20.918749999999999,null,null,null,740,"8core 4.2GHz P7+","8Core",64500,115.5,8062.5,14.4375,1,null,null,null,null,8,4.4000000000000004,36200,70.97,4525,8.8712499999999999,null,null,null,"P5+/1 ",2100,6.63,null,null,"P5+/16 ",2100,108.13,null,null,null,null,null,null,null,null,null,null,null,null,null,null,null,null,null,null,null,null,null,null,null,null,null,null,null,null,null,null,2322,1794,579.6,null,"0150",1100,"-",0]
[null,null,null,null,null,null,null,null,null,null,null,null,null,null,null,null,null,null,null,null,null,880,"32core 4.35GHz P8","128core",1523000,2677.6,11898.4375,20.918749999999999,null,null,null,740,"8core 4.2GHz P7+","16Core",120000,223.1,7500,13.94375,2,null,null,null,null,8,4.7,40100,74.89,5012.5,9.3612500000000001,null,null,null,"P5+/2 ",2100,12.46,null,null,"P5+/24 ",2100,155.51,null,null,null,null,null,null,null,null,null,null,null,null,"Model","CPU","CPW",5250,"Model","CPU FC","Way数","CPW","対話FC",5250,null,null,null,null,null,null,null,"S40",2256,1794,64,null,"0151",2350,"-",0,null,2418,10000]
[null,null,null,null,null,null,null,null,null,null,null,null,null,null,null,null,null,null,null,null,null,880,"40core 4.19GHz P8","40Core",460000,800,11500,20,null,null,null,750,"6core 3.3GHz P7","6core",37200,70.069999999999993,6200,11.678333333333333,1,null,null,null,null,8,5,40300,78.709999999999994,5037.5,9.8387499999999992,null,null,"p5-520Q ","P5+/4 ",1500,18.75,null,null,"P5+/32 ",2100,202.88,null,null,null,null,null,null,null,null,null,null,null,null,800,2463,300,25,825,2473,"3/6Way","3600-",7416,0,null,null,null,null,null,null,null,null,2261,2340,64,null,"0152",3700,"-",0]
[null,null,null,null,null,null,null,null,null,null,null,null,null,null,null,null,null,null,null,null,null,880,"40core 4.19GHz P8","80Core",911000,1599.9,11387.5,19.998750000000001,null,null,null,750,"6core 3.3GHz P7","12core",69200,134.54,5766.666666666667,11.211666666666666,2,null,null,null,null,12,3.5,43100,83.35,3591.6666666666665,6.9458333333333329,null,null,null,"P5+/4 ",1650,20.25,null,"p5-595 ","P5/16 ",1650,80.86,null,null,null,null,null,null,null,null,null,null,null,null,null,2464,950,50,null,null,null,6600,7418,"Full",null,null,null,null,null,null,null,null,2207,3660,120,830,2400,1850,1531,70,null,2419,"13200-"]
[null,null,null,null,null,null,null,null,null,null,null,null,null,null,null,null,null,null,null,null,null,880,"40core 4.19GHz P8","120core",1366000,2400,{"$f":"Y40/LEFT($X40,SEARCH(\"core\",$X40)-1)","v":11383.333333333334},20,null,null,null,750,"6core 3.3GHz P7","18core",94900,193.4,5272.2222222222226,10.744444444444445,3,null,null,null,null,12,4.4000000000000004,51500,100.35,4291.666666666667,8.3624999999999989,null,null,"p5-550 ","P5/1 ",1500,3.25,null,null,"P5/24 ",1650,116.29,null,null,null,null,null,null,null,null,null,null,null,null,null,null,null,null,null,null,null,null,7434,"HA",null,null,null,null,null,null,null,null,2208,4550,120,null,2402,4200,1532,120,null,null,16500]
[null,null,null,null,null,null,null,null,null,null,null,null,null,null,null,null,null,null,null,null,null,880,"40core 4.19GHz P8","160core",1822000,3200,11387.5,20,null,null,null,750,"6core 3.3GHz P7","24core",135300,252.26,5637.5,10.510833333333332,4,null,null,null,null,12,5,56800,111.3,4733.333333333333,9.2750000000000004,null,null,null,"P5/2 ",1500,9.1300000000000008,null,null,"P5/32 ",1650,151.72,null,null,null,null,null,null,null,null,null,null,null,null,810,2465,750,7404,null,2495,"1/6Way","1250-",7439,"CBU",null,null,null,null,null,null,null,null,2340,3660,1050,null,2403,7350,1533,240]
[null,null,null,null,null,null,null,null,null,null,null,null,null,null,null,null,null,null,null,null,null,880,"48core 4.00GHz P8","48Core",518000,912.6,10791.666666666666,19.012499999999999,null,null,null,750,"8core 3.0GHz P7","8core",44600,81.239999999999995,5575,10.154999999999999,1,null,null,null,null,16,3.5,57600,105.75,3600,6.609375,null,null,null,"P5/4 ",1500,18.2,null,null,"P5/40 ",1650,182.07,null,null,null,null,null,null,null,null,null,null,null,null,null,null,null,7406,null,null,null,6600,null,null,null,null,null,null,null,null,null,null,2341,4550,2050,null,2349,"4200-",1534,560,null,2420,16500]
[null,null,null,null,null,null,null,null,null,null,null,null,null,null,null,null,null,null,null,null,null,880,"48core 4.00GHz P8","96Core",1034000,1825.1,10770.833333333334,19.011458333333334,null,null,null,750,"8core 3.0GHz P7","16core",82600,155.99,5162.5,9.7493750000000006,2,null,null,null,null,16,4.2,68600,122.67,4287.5,7.6668750000000001,null,null,null,"P5/2 ",1650,9.86,null,null,"P5/48 ",1650,212.41,null,null,null,null,null,null,null,null,null,null,null,null,null,null,null,7445,null,null,null,null,null,null,null,null,null,null,null,null,null,null,null,null,null,null,null,7350,1535,1050,null,2461,20200]
[null,null,null,null,null,null,null,null,null,null,null,null,null,null,null,null,null,null,null,null,null,880,"48core 4.00GHz P8","144Core",1551000,2737.7,10770.833333333334,19.011805555555554,null,null,null,750,"8core 3.0GHz P7","24core",122500,224.23,5104.166666666667,9.3429166666666656,3,null,null,null,null,16,4.4000000000000004,70000,127.32,4375,7.9574999999999996,null,null,null,"P5/4 ",1650,19.66,null,null,"P5/56 ",1650,242.76,null,null,null,null,null,null,null,null,null,null,null,null,null,2466,1020,7407,870,2489,"5/8Way","7700-",7431,0,null,null,null,null,null,null,null,null,null,null,null,null,null,null,1536,2000,null,"0158",12000,"-",0]
[null,null,null,null,null,null,null,null,null,null,null,880,null,null,null,null,null,null,null,null,null,880,"48core 4.00GHz P8","192Core",2069000,3650.3,10776.041666666666,19.011979166666666,null,null,null,750,"8core 3.0GHz P7","32core",158300,292.47000000000003,4946.875,9.1396875000000009,4,null,null,null,null,16,4.7,76900,134.35,4806.25,8.3968749999999996,null,null,null,"P5+/2 ",1650,10.15,null,null,"P5/64 ",1650,273.10000000000002,null,null,null,null,null,null,null,null,null,null,null,null,null,null,null,7409,null,null,null,11500,7433,"Full",null,null,null,null,null,null,null,null,null,null,null,null,null,null,1537,4550,null,"0159",20200,"-",0]
[null,null,null,null,null,null,null,null,null,null,null,null,null,null,null,null,null,null,null,null,null,null,null,null,null,null,null,null,null,null,null,750,"8core 3.3GHz P7","8core",47800,86.99,5975,10.873749999999999,1,null,null,null,null,16,5,77600,141.21,4850,8.8256250000000005,null,null,null,"P5+/4",1650,20.25,null,null,"P5/16 ",1900,90.67,null,null,null,null,null,null,null,null,null,null,null,null,null,null,null,7446,null,null,null,null,7435,"HA",null,null,null,null,null,null,null,null,null,null,null,null,"0153",7350,"-",0]
[null,null,null,null,null,null,null,null,null,null,null,null,null,null,null,null,null,null,null,null,null,null,null,null,null,null,null,null,null,null,null,750,"8core 3.3GHz P7","16core",88700,167.01,5543.75,10.438124999999999,2,null,null,null,595,8,4.2,35500,75.58,4437.5,9.4474999999999998,null,null,null,"P5+/2 ",1900,11.16,null,null,"P5/24 ",1900,130.38999999999999,null,null,null,null,null,null,null,null,null,null,null,null,null,2467,1470,7410,null,2486,"8/16Way","11500-",7419,0]
[null,null,null,null,null,null,null,null,null,null,null,null,null,null,null,null,null,null,null,null,null,null,null,null,null,null,null,null,null,null,null,750,"8core 3.3GHz P7","24core",129700,140.08000000000001,5404.166666666667,5.8366666666666669,3,null,null,null,null,8,5,41000,87.1,5125,10.887499999999999,null,null,null,"P5+/4 ",1900,22.26,null,null,"P5/32 ",1900,170.11,null,null,null,null,null,null,null,null,null,null,null,null,null,null,null,7412,null,null,null,20000,7421,"Full"]
[null,null,null,null,null,null,null,null,null,null,null,null,null,null,null,null,null,null,null,null,null,null,null,null,null,null,null,null,null,null,null,750,"8core 3.3GHz P7","32core",168800,313.14999999999998,5275,9.7859374999999993,4,null,null,null,null,16,4.2,66400,142.9,4150,8.9312500000000004,null,null,null,"P5+/2 ",2100,12.46,null,null,"P5/40 ",1900,204.14,null,null,null,null,null,null,null,null,null,null,null,null,null,null,null,7447,null,null,null,null,7436,"HA"]
[null,null,null,null,null,null,null,null,null,null,null,null,null,null,null,null,null,null,null,null,null,null,null,null,null,null,null,null,null,null,null,750,"8core 3.55GHz P7","8core",52200,91.96,6525,11.494999999999999,1,null,null,null,null,16,5,77000,164.67,4812.5,10.291874999999999,null,null,null,"P5+/4 ",2100,24.86,null,null,"P5/48 ",1900,238.16,null,null,null,null,null,null,null,null,null,null,null,null,null,2469,2700,7428,null,2496,"2/16Way","3200-",7440,"CBU"]
[null,null,null,null,null,null,null,null,null,null,null,null,null,null,null,null,null,null,null,null,null,null,null,null,null,null,null,null,null,null,null,750,"8core 3.55GHz P7","16core",95700,176.57,5981.25,11.035625,2,null,null,null,null,24,4.2,93800,null,3908.3333333333335,0,null,null,"p5-550Q","P5+/4 ",1500,18.2,null,null,"P5/56 ",1900,272.18,null,null,null,null,null,null,null,null,null,null,null,null,null,null,null,7430,null,null,null,20000]
[null,null,null,null,null,null,null,null,null,null,null,null,null,null,null,null,null,null,null,null,null,null,null,null,null,null,null,null,null,null,null,750,"8core 3.55GHz P7","24core",138500,253.82,{"$f":"AI52/LEFT($AH52,SEARCH(\"core\",$AH52)-1)","v":5770.833333333333},10.575833333333334,3,null,null,null,null,24,5,108100,null,4504.166666666667,0,null,null,null,"P5+/8 ",1500,34.46,null,null,"P5/64 ",1900,306.20999999999998,null,null,null,null,null,null,null,null,null,null,null,null,null,null,null,7448,890,"0197","24Way",29300,"-",0]
[null,null,null,null,null,null,null,null,null,null,null,null,null,null,null,null,null,null,null,null,null,null,null,null,null,null,null,null,null,null,null,750,"8core 3.55GHz P7","32core",181000,331.06,5656.25,10.345625,4,null,null,null,null,32,4.2,128000,266.51,4000,8.3284374999999997,null,null,null,"P5+/4 ",1650,20.25,null,null,"P5+/16 ",2100,108.13,null,null,null,null,null,null,null,null,null,null,null,null,null,null,null,null,null,"0198","32Way",37400,"-",0]
[null,null,null,null,null,null,null,null,null,null,null,null,null,null,null,null,null,null,null,null,null,null,null,null,null,null,null,null,null,null,null,750,"8core 3.2GHz P7","8core",47800,85.29,5975,10.661250000000001,1,null,null,null,null,32,5,147900,307.12,4621.875,9.5975000000000001,null,null,null,"P5+/8",1650,38.340000000000003,null,null,"P5+/24 ",2100,155.51,null,null,null,null,null,null,null,null,null,null,null,null,null,null,null,null,null,2487,"16/24Way","20000-",1576,120]
[null,null,null,null,null,null,null,null,null,null,null,null,null,null,null,null,null,null,null,null,null,null,null,null,null,null,null,null,null,null,null,750,"8core 3.2GHz P7","16core",89600,163.75,5600,10.234375,2,null,null,null,null,64,4.2,256200,479.89,4003.125,7.4982812499999998,null,null,"p5-560Q","P5+/4",1500,18.75,null,null,"P5+/32 ",2100,202.88,null,null,null,null,null,null,null,null,null,null,null,null,null,null,null,null,null,null,null,29300,1577,240]
[null,null,null,null,null,null,null,null,null,null,null,null,null,null,null,null,null,null,null,null,null,null,null,null,null,null,null,null,null,null,null,750,"8core 3.2GHz P7","24core",131500,235.39,5479.166666666667,9.8079166666666655,3,null,null,null,null,64,5,"294700",553.01,4604.6875,8.6407812499999999,"*",null,null,"P5+/8",1500,35.5,null,null,"P5+/40 ",2100,243.46,null,null,null,null,null,null,null,null,null,null,null,null,null,null,null,null,null,2488,"24/32Way","29300-",1578,560]
[null,null,null,null,null,null,null,null,null,null,null,null,null,null,null,null,null,null,null,null,null,null,null,null,null,null,null,null,null,null,null,750,"8core 3.2GHz P7","32core",171400,307.02999999999997,5356.25,9.5946874999999991,4,null,null,null,null,4,3.8,26600,null,6650,0,null,null,null,"P5+/16",1500,65.239999999999995,null,null,"P5+/48 ",2100,284.04000000000002,null,null,null,null,null,null,null,null,null,null,null,null,null,null,null,null,null,null,null,37400,1579,1050]
[null,null,null,null,null,null,null,null,null,null,null,null,null,null,null,null,null,null,null,null,null,null,null,null,null,null,null,null,null,null,null,750,"8core 3.6GHz P7","8core",52700,93.05,6587.5,11.63125,1,null,null,null,null,8,3.8,54400,100.75,6800,12.59375,null,null,null,"P5+/4",1800,21.72,null,null,"P5+/56 ",2100,324.61,null,null,null,null,null,null,null,null,null,null,null,null,null,null,null,null,null,null,null,null,1581,2000]
[null,null,null,null,null,null,null,null,null,null,null,null,null,null,null,null,null,null,null,null,null,null,null,null,null,null,null,null,null,null,null,750,"8core 3.6GHz P7","16core",97000,178.65,6062.5,11.165625,2,null,null,null,null,8,4.0999999999999996,57450,115.86,7181.25,14.4825,null,null,null,"P5+/8",1800,41.12,null,null,"P5+/64 ",2100,365.19,null,null,null,null,null,null,null,null,null,null,null,null,null,null,null,null,null,null,null,null,1583,4550]
[null,null,null,null,null,null,null,null,null,null,null,null,null,null,null,null,null,null,null,null,null,null,null,null,null,null,null,null,null,null,null,750,"8core 3.6GHz P7","24core",141400,256.81,5891.666666666667,10.700416666666667,3,null,null,null,null,16,3.8,105200,195.45,6575,12.215624999999999,null,null,null,"P5+/16",1800,75.58,null,null,"P5+/16 ",2300,116.53,null,null,null,null,null,null,null,null,null,null,null,null,null,null,null,null,null,null,null,null,1585,10000]
[null,null,null,null,null,null,null,null,null,null,null,null,null,null,null,null,null,null,null,null,null,null,null,null,null,null,null,null,null,null,null,750,"8core 3.6GHz P7","32core",183200,334.97,5725,10.467812500000001,4,null,null,null,null,16,4.0999999999999996,"114850",226.97,7178.125,14.185625,"**",null,null,null,null,null,null,null,"P5+/24 ",2300,167.58,null,null,null,null,null,null,null,null,null,null,null,null,null,null,null,null,null,null,null,null,1587,16500]
[null,null,null,null,null,null,null,null,null,null,null,null,null,null,null,null,null,null,null,null,null,null,null,null,null,null,null,null,null,null,null,750,"4core 3.7GHz P7","4core",27300,52.9,6825,13.225,1,null,null,null,null,24,4.0999999999999996,"172450",326.24,7185.416666666667,13.593333333333334,"**",null,null,null,null,null,null,null,"P5+/32 ",2300,218.64,null,null,null,null,null,null,null,null,null,null,null,null,null,null,null,null,null,null,null,null,1588,20200]
[null,null,null,null,null,null,null,null,null,null,null,null,null,null,null,null,null,null,null,null,null,null,null,null,null,null,null,null,null,null,null,750,"4core 3.7GHz P7","8core",51000,101.57,6375,12.696249999999999,2,null,null,null,null,32,3.8,177400,362.7,5543.75,11.334375,null,null,null,null,null,null,null,null,"P5+/40 ",2300,262.37,null,null,null,null,null,null,null,null,null,null,null,null,null,null,null,null,null,null,null,null,1591,39400]
[null,null,null,null,null,null,null,null,null,null,null,null,null,null,null,null,null,null,null,null,null,null,null,null,null,null,null,null,null,null,null,750,"4core 3.7GHz P7","12core",74700,146,6225,12.166666666666666,3,null,null,null,null,32,4.0999999999999996,"229650",425.5,7176.5625,13.296875,"**",null,null,null,null,null,null,null,"P5+/48 ",2300,306.10000000000002,null,null,null,null,null,null,null,null,null,null,null,null,null,null,null,null,null,2497,"16/24Way","20000-",7422,0]
[null,null,null,null,null,null,null,null,null,null,null,null,null,null,null,null,null,null,null,null,null,null,null,null,null,null,null,null,null,null,null,750,"4core 3.7GHz P7","16core",97700,190.44,6106.25,11.9025,4,null,null,null,null,48,3.8,265200,523.89,5525,10.914375,null,null,null,null,null,null,null,null,"P5+/56 ",2300,349.83,null,null,null,null,null,null,null,null,null,null,null,null,null,null,null,null,null,null,null,29300,7424,"Full"]
[null,null,null,null,null,null,null,null,null,null,null,null,null,null,null,null,null,null,null,null,null,null,null,null,null,null,null,null,null,null,null,750,"6core 3.7GHz P7","6core",40800,76.709999999999994,6800,12.784999999999998,1,null,null,null,null,64,3.8,"343050",685.09,5360.15625,10.70453125,"*",null,null,null,null,null,null,null,"P5+/64 ",2300,393.55,null,null,null,null,null,null,null,null,null,null,null,null,null,null,null,null,null,null,null,null,7437,"HA"]
[null,null,null,null,null,null,null,null,null,null,null,null,null,null,null,null,null,null,null,null,null,null,null,null,null,null,null,null,null,null,null,750,"6core 3.7GHz P7","12core",75500,147.27000000000001,6291.666666666667,12.272500000000001,2,null,null,null,null,24,3.7,149100,273.51,6212.5,11.39625,null,null,null,null,null,null,null,null,null,null,null,null,null,null,null,null,null,null,null,null,null,null,null,null,null,null,null,null,2498,"24/32Way","29300-",7425,0]
[null,null,null,null,null,null,null,null,null,null,null,null,null,null,null,null,null,null,null,null,null,null,null,null,null,null,null,null,null,null,null,750,"6core 3.7GHz P7","18core",109100,211.71,6061.1111111111113,11.761666666666667,3,null,null,null,null,24,4.25,162100,347.36,{"$f":"AT68/AR68","v":6754.166666666667},{"$f":"AU68/AR68","v":14.473333333333334},null,null,null,null,null,null,null,null,null,null,null,null,null,null,null,null,null,null,null,null,null,null,null,null,null,null,null,null,null,null,37400,7427,"Full"]
[null,null,null,null,null,null,null,null,null,null,null,null,null,null,null,null,null,null,null,null,null,null,null,null,null,null,null,null,null,null,null,750,"6core 3.7GHz P7","24core",145600,276.14,6066.666666666667,11.505833333333333,4,null,null,null,null,32,4,204300,372.27,6384.375,11.633437499999999,null,null,null,null,null,null,null,null,null,null,null,null,null,null,null,null,null,null,null,null,null,null,null,null,null,null,null,null,null,null,null,7438,"HA"]
[null,null,null,null,null,null,null,null,null,null,null,null,null,null,null,null,null,null,null,null,null,null,null,null,null,null,null,null,null,null,null,750,"8core 3.5GHz P7+","8core",52000,104.5,6500,13.0625,2,null,null,null,null,32,4.25,218400,463.14,6825,14.473125,null,null,null,null,null,null,null,null,null,null,null,null,null,null,null,null,null,null,null,null,null,null,null,null,null,null,null,null,2499,"4/32Way","5600-",7441,"CBU"]
[null,null,null,null,null,null,null,null,null,null,null,null,null,null,null,null,null,null,null,null,null,null,null,null,null,null,null,null,null,null,null,750,"8core 3.5GHz P7+","16core",96000,197,6000,12.3125,4,null,null,null,null,48,3.7,288500,547.02,6010.416666666667,11.39625,null,null,null,null,null,null,null,null,null,null,null,null,null,null,null,null,null,null,null,null,null,null,null,null,null,null,null,null,null,null,37400]
[null,null,null,null,null,null,null,null,null,null,null,null,null,null,null,null,null,null,null,null,null,null,null,null,null,null,null,null,null,null,null,750,"8core 3.5GHz P7+","24core",141500,275.89999999999998,5895.833333333333,11.495833333333332,6,null,null,null,null,64,4,399200,744.54,6237.5,11.633437499999999]
[null,null,null,null,null,null,null,null,null,null,null,null,null,null,null,null,null,null,null,null,null,null,null,null,null,null,null,null,null,null,null,750,"8core 3.5GHz P7+","32core",185000,354.9,5781.25,11.090624999999999,8,null,null,null,"570(32)",4,4.2,16200,35.5,4050,8.875,"32coreカード"]
[null,null,null,null,null,null,null,null,null,null,null,null,null,null,null,null,null,null,null,null,null,null,null,null,null,null,null,null,null,null,null,750,"8core 4.0GHz P7+","8core",59000,117.1,7375,14.637499999999999,2,null,null,null,null,8,4.2,31900,64.959999999999994,3987.5,8.1199999999999992,"32coreカード"]
[null,null,null,null,null,null,null,null,null,null,null,null,null,null,null,null,null,null,null,null,null,null,null,null,null,null,null,null,null,null,null,750,"8core 4.0GHz P7+","16core",108000,220.7,6750,13.793749999999999,4,null,null,null,null,16,4.2,56400,113.68,3525,7.1050000000000004,"32coreカード"]
[null,null,null,null,null,null,null,null,null,null,null,null,null,null,null,null,null,null,null,null,null,null,null,null,null,null,null,null,null,null,null,750,"8core 4.0GHz P7+","24core",158000,309.2,6583.333333333333,12.883333333333333,6,null,null,null,null,24,4.2,81600,153.46,3400,6.394166666666667,"32coreカード"]
[null,null,null,null,null,null,null,null,null,null,null,null,null,null,null,null,null,null,null,null,null,null,null,null,null,null,null,null,null,null,null,750,"8core 4.0GHz P7+","32core",208000,397.7,6500,{"$f":"AJ77/LEFT($AH77,SEARCH(\"core\",$AH77)-1)","v":12.428125},8,null,null,null,null,32,4.2,104800,193.25,3275,6.0390625,"32coreカード"]
[null,null,null,null,null,null,null,null,null,null,null,null,null,null,null,null,null,null,null,null,null,null,null,null,null,null,null,null,null,null,null,760,"12core 3.136GHz P7+","12core",69800,142.1,5816.666666666667,11.841666666666667,2,null,null,null,"JS12",2,3.8,7100,14.71,3550,7.3550000000000004]
[null,null,null,null,null,null,null,null,null,null,null,null,null,null,null,null,null,null,null,null,null,null,null,null,null,null,null,null,null,null,null,760,"12core 3.136GHz P7+","24core",129000,264.8,5375,11.033333333333333,4,null,null,null,"JS22",4,4,13800,30.26,3450,7.5650000000000004]
[null,null,null,null,null,null,null,null,null,null,null,null,null,null,null,null,null,null,null,null,null,null,null,null,null,null,null,null,null,null,null,760,"12core 3.136GHz P7+","36core",195700,370.7,5436.1111111111113,10.297222222222222,6,null,null,null,"JS23",4,4.2,14400,36.28,3600,9.07]
[null,null,null,null,null,null,null,null,null,null,null,null,null,null,null,null,null,null,null,null,null,null,null,null,null,null,null,null,null,null,null,760,"12core 3.136GHz P7+","48core",258000,476.7,5375,9.9312500000000004,8,null,null,null,"JS43",8,4.2,24050,68.2,3006.25,8.5250000000000004]
[null,null,null,null,null,null,null,null,null,null,null,null,null,null,null,null,null,null,null,null,null,null,null,null,null,null,null,null,null,null,null,760,"12core 3.416GHz P7+","12core",75200,151.4,6266.666666666667,12.616666666666667,2,null,null,null,"PS700",4,3,21100,45.13,5275,11.282500000000001]
[null,null,null,null,null,null,null,null,null,null,null,null,null,null,null,null,null,null,null,null,null,null,null,null,null,null,null,null,null,null,null,760,"12core 3.416GHz P7+","24core",137000,282.10000000000002,5708.333333333333,11.754166666666668,4,null,null,null,"PS701",8,3,42100,81.239999999999995,5262.5,10.154999999999999]
[null,null,null,null,null,null,null,null,null,null,null,null,null,null,null,null,null,null,null,null,null,null,null,null,null,null,null,null,null,null,null,760,"12core 3.416GHz P7+","36core",209000,395,{"$f":"AI84/LEFT($AH84,SEARCH(\"core\",$AH84)-1)","v":5805.5555555555557},10.972222222222221,6,null,null,null,"PS702",16,3,76300,154.36000000000001,4768.75,9.6475000000000009]
[null,null,null,null,null,null,null,null,null,null,null,null,null,null,null,null,null,null,null,null,null,null,null,null,null,null,null,null,null,null,null,760,"12core 3.416GHz P7+","48core",274000,507.8,5708.333333333333,10.579166666666667,8,null,null,null,"PS703",16,2.4,64000,134.11000000000001,4000,8.3818750000000009]
[null,null,null,null,null,null,null,null,null,null,null,null,null,null,null,null,null,null,null,null,null,null,null,null,null,null,null,null,null,null,null,770,"12core 3.5GHz P7","4core",24900,null,6225,12.09,null,null,null,null,"PS704",32,2.4,110000,251.45,3437.5,7.8578124999999996]
[null,null,null,null,null,null,null,null,null,null,null,null,null,null,null,null,null,null,null,null,null,null,null,null,null,null,null,null,null,null,null,770,"12core 3.5GHz P7","6core",37400,72.55,6233.333333333333,{"$f":"AJ87/LEFT($AH87,SEARCH(\"core\",$AH87)-1)","v":12.091666666666667}]
[null,null,null,null,null,null,null,null,null,null,null,null,null,null,null,null,null,null,null,null,null,null,null,null,null,null,null,null,null,null,null,770,"12core 3.5GHz P7","12core",73100,140.75,6091.666666666667,{"$f":"AJ88/LEFT($AH88,SEARCH(\"core\",$AH88)-1)","v":11.729166666666666}]
[null,null,null,null,null,null,null,null,null,null,null,null,null,null,null,null,null,null,null,null,null,null,null,null,null,null,null,null,null,null,null,770,"12core 3.5GHz P7","18core",99000,null,5500,10.88]
[null,null,null,null,null,null,null,null,null,null,null,null,null,null,null,null,null,null,null,null,null,null,null,null,null,null,null,null,null,null,null,770,"12core 3.5GHz P7","24core",131050,261.19,5460.416666666667,{"$f":"AJ90/LEFT($AH90,SEARCH(\"core\",$AH90)-1)","v":10.882916666666667}]
[null,null,null,null,null,null,null,null,null,null,null,null,null,null,null,null,null,null,null,null,null,null,null,null,null,null,null,null,null,null,null,770,"12core 3.5GHz P7","48core",248550,493.37,5178.125,{"$f":"AJ91/LEFT($AH91,SEARCH(\"core\",$AH91)-1)","v":10.278541666666667}]
[null,null,null,null,null,null,null,null,null,null,null,null,null,null,null,null,null,null,null,null,null,null,null,null,null,null,null,null,null,null,null,770,"16core 3.1GHz P7","4core",22750,null,5687.5,10.65]
[null,null,null,null,null,null,null,null,null,null,null,null,null,null,null,null,null,null,null,null,null,null,null,null,null,null,null,null,null,null,null,770,"16core 3.1GHz P7","8core",45000,85.2,5625,{"$f":"AJ93/LEFT($AH93,SEARCH(\"core\",$AH93)-1)","v":10.65}]
[null,null,null,null,null,null,null,null,null,null,null,null,null,null,null,null,null,null,null,null,null,null,null,null,null,null,null,null,null,null,null,770,"16core 3.1GHz P7","16core",88800,165.3,{"$f":"AI94/LEFT($AH94,SEARCH(\"core\",$AH94)-1)","v":5550},10.331250000000001]
[null,null,null,null,null,null,null,null,null,null,null,null,null,null,null,null,null,null,null,null,null,null,null,null,null,null,null,null,null,null,null,770,"16core 3.1GHz P7","32core",155850,306.74,4870.3125,9.5856250000000003]
[null,null,null,null,null,null,null,null,null,null,null,null,null,null,null,null,null,null,null,null,null,null,null,null,null,null,null,null,null,null,null,770,"16core 3.1GHz P7","48core",229800,443.06,4787.5,9.2304166666666667]
[null,null,null,null,null,null,null,null,null,null,null,null,null,null,null,null,null,null,null,null,null,null,null,null,null,null,null,null,null,null,null,770,"16core 3.1GHz P7","64core",292700,579.39,4573.4375,9.0529687499999998,"MMD/MHDは、SPTの数値を参照してます。"]
[null,null,null,null,null,null,null,null,null,null,null,null,null,null,null,null,null,null,null,null,null,null,null,null,null,null,null,null,null,null,null,770,"12core 3.72GHz P7","12core",77000,147.5,6416.666666666667,12.291666666666666,"特にMHDの数値は、正しく無さそうです。"]
[null,null,null,null,null,null,null,null,null,null,null,null,null,null,null,null,null,null,null,null,null,null,null,null,null,null,null,null,null,null,null,770,"12core 3.72GHz P7","24core",135900,273.7,5662.5,11.404166666666667,"左表は暫定値としてお読みください。"]
[null,null,null,null,null,null,null,null,null,null,null,null,null,null,null,null,null,null,null,null,null,null,null,null,null,null,null,null,null,null,null,770,"12core 3.72GHz P7","36core",211000,395.4,5861.1111111111113,10.983333333333333]
[null,null,null,null,null,null,null,null,null,null,null,null,null,null,null,null,null,null,null,null,null,null,null,null,null,null,null,null,null,null,null,770,"12core 3.72GHz P7","48core",270500,517,5635.416666666667,10.770833333333334]
[null,null,null,null,null,null,null,null,null,null,null,null,null,null,null,null,null,null,null,null,null,null,null,null,null,null,null,null,null,null,null,770,"16core 3.3GHz P7","16core",93000,173.1,5812.5,10.81875]
[null,null,null,null,null,null,null,null,null,null,null,null,null,null,null,null,null,null,null,null,null,null,null,null,null,null,null,null,null,null,null,770,"16core 3.3GHz P7","32core",162000,321.2,5062.5,10.0375]
[null,null,null,null,null,null,null,null,null,null,null,null,null,null,null,null,null,null,null,null,null,null,null,null,null,null,null,null,null,null,null,770,"16core 3.3GHz P7","48core",252700,464,5264.583333333333,9.6666666666666661]
[null,null,null,null,null,null,null,null,null,null,null,null,null,null,null,null,null,null,null,null,null,null,null,null,null,null,null,null,null,null,null,770,"16core 3.3GHz P7","64core",321000,606.79999999999995,5015.625,9.4812499999999993]
[null,null,null,null,null,null,null,null,null,null,null,null,null,null,null,null,null,null,null,null,null,null,null,null,null,null,null,null,null,null,null,770,"12core 4.22GHz P7＋","12core",90000,184.2,7500,15.35]
[null,null,null,null,null,null,null,null,null,null,null,null,null,null,null,null,null,null,null,null,null,null,null,null,null,null,null,null,null,null,null,770,"12core 4.22GHz P7＋","24core",154800,345.1,6450,14.379166666666668]
[null,null,null,null,null,null,null,null,null,null,null,null,null,null,null,null,null,null,null,null,null,null,null,null,null,null,null,null,null,null,null,770,"12core 4.22GHz P7＋","36core",230700,478.9,6408.333333333333,13.302777777777777]
[null,null,null,null,null,null,null,null,null,null,null,null,null,null,null,null,null,null,null,null,null,null,null,null,null,null,null,null,null,null,null,770,"12core 4.22GHz P7＋","48core",306600,612.70000000000005,6387.5,12.764583333333334]
[null,null,null,null,null,null,null,null,null,null,null,null,null,null,null,null,null,null,null,null,null,null,null,null,null,null,null,null,null,null,null,770,"16core 3.80GHz P7＋","16core",110000,219.3,{"$f":"AI110/LEFT($AH110,SEARCH(\"core\",$AH110)-1)","v":6875},13.706250000000001]
[null,null,null,null,null,null,null,null,null,null,null,null,null,null,null,null,null,null,null,null,null,null,null,null,null,null,null,null,null,null,null,770,"16core 3.80GHz P7＋","32core",191500,410.8,5984.375,12.8375]
[null,null,null,null,null,null,null,null,null,null,null,null,null,null,null,null,null,null,null,null,null,null,null,null,null,null,null,null,null,null,null,770,"16core 3.80GHz P7＋","48core",290500,570.1,6052.083333333333,11.877083333333333]
[null,null,null,null,null,null,null,null,null,null,null,null,null,null,null,null,null,null,null,null,null,null,null,null,null,null,null,null,null,null,null,770,"16core 3.80GHz P7＋","64core",379300,729.3,5926.5625,11.395312499999999]
[null,null,null,null,null,null,null,null,null,null,null,null,null,null,null,null,null,null,null,null,null,null,null,null,null,null,null,null,null,null,null,780,"8core 3.86GHz P7","16core",105200,195.45,6575,12.215624999999999]
[null,null,null,null,null,null,null,null,null,null,null,null,null,null,null,null,null,null,null,null,null,null,null,null,null,null,null,null,null,null,null,780,"8core 3.86GHz P7","32core",177400,362.7,5543.75,11.334375]
[null,null,null,null,null,null,null,null,null,null,null,null,null,null,null,null,null,null,null,null,null,null,null,null,null,null,null,null,null,null,null,780,"8core 3.86GHz P7","48core",265200,523.89,5525,10.914375]
[null,null,null,null,null,null,null,null,null,null,null,null,null,null,null,null,null,null,null,null,null,null,null,null,null,null,null,null,null,null,null,780,"8core 3.86GHz P7","64core",343050,685.09,5360.15625,10.70453125]
[null,null,null,null,null,null,null,null,null,null,null,null,null,null,null,null,null,null,null,null,null,null,null,null,null,null,null,null,null,null,null,780,"8core 3.92GHz P7","16core",106000,197.6,6625,12.35]
[null,null,null,null,null,null,null,null,null,null,null,null,null,null,null,null,null,null,null,null,null,null,null,null,null,null,null,null,null,null,null,780,"8core 3.92GHz P7","32core",183000,366.6,5718.75,11.456250000000001]
[null,null,null,null,null,null,null,null,null,null,null,null,null,null,null,null,null,null,null,null,null,null,null,null,null,null,null,null,null,null,null,780,"8core 3.92GHz P7","48core",286500,529.6,5968.75,11.033333333333333]
[null,null,null,null,null,null,null,null,null,null,null,null,null,null,null,null,null,null,null,null,null,null,null,null,null,null,null,null,null,null,null,780,"8core 3.92GHz P7","64core",363000,692.5,5671.875,10.8203125]
[null,null,null,null,null,null,null,null,null,null,null,null,null,null,null,null,null,null,null,null,null,null,null,null,null,null,null,null,null,null,null,780,"16core 4.42GHz P7＋","16core",123500,245.7,7718.75,15.356249999999999]
[null,null,null,null,null,null,null,null,null,null,null,null,null,null,null,null,null,null,null,null,null,null,null,null,null,null,null,null,null,null,null,780,"16core 4.42GHz P7＋","32core",214000,460.3,6687.5,14.384375]
[null,null,null,null,null,null,null,null,null,null,null,null,null,null,null,null,null,null,null,null,null,null,null,null,null,null,null,null,null,null,null,780,"16core 4.42GHz P7＋","48core",326100,638.70000000000005,6793.75,13.30625]
[null,null,null,null,null,null,null,null,null,null,null,null,null,null,null,null,null,null,null,null,null,null,null,null,null,null,null,null,null,null,null,780,"16core 4.42GHz P7＋","64core",424400,817.1,6631.25,12.7671875]
[null,null,null,null,null,null,null,null,null,null,null,null,null,null,null,null,null,null,null,null,null,null,null,null,null,null,null,null,null,null,null,780,"32core 3.72GHz P7＋","32core",209500,383.9,6546.875,11.996874999999999]
[null,null,null,null,null,null,null,null,null,null,null,null,null,null,null,null,null,null,null,null,null,null,null,null,null,null,null,null,null,null,null,780,"32core 3.72GHz P7＋","64core",414900,690.1,6482.8125,10.7828125]
[null,null,null,null,null,null,null,null,null,null,null,null,null,null,null,null,null,null,null,null,null,null,null,null,null,null,null,null,null,null,null,780,"32core 3.72GHz P7＋","96core",622300,1151.5999999999999,6482.291666666667,11.995833333333332]
[null,null,null,null,null,null,null,null,null,null,null,null,null,null,null,null,null,null,null,null,null,null,null,null,null,null,null,null,null,null,null,780,"32core 3.72GHz P7＋","128core",829800,1380.2,6482.8125,10.7828125]
[null,null,null,null,null,null,null,null,null,null,null,null,null,null,null,null,null,null,null,null,null,null,null,null,null,null,null,null,null,null,null,795,"8core 3.86GHz P7","16core",105200,195.45,6575,12.215624999999999]
[null,null,null,null,null,null,null,null,null,null,null,null,null,null,null,null,null,null,null,null,null,null,null,null,null,null,null,null,null,null,null,795,"8core 3.86GHz P7","32core",177400,362.7,5543.75,11.334375]
[null,null,null,null,null,null,null,null,null,null,null,null,null,null,null,null,null,null,null,null,null,null,null,null,null,null,null,null,null,null,null,795,"8core 3.86GHz P7","48core",265200,523.89,5525,10.914375]
[null,null,null,null,null,null,null,null,null,null,null,null,null,null,null,null,null,null,null,null,null,null,null,null,null,null,null,null,null,null,null,795,"8core 3.86GHz P7","64core",343050,685.09,5360.15625,10.70453125]
[null,null,null,null,null,null,null,null,null,null,null,null,null,null,null,null,null,null,null,null,null,null,null,null,null,null,null,null,null,null,null,795,"8core 3.92GHz P7","16core",106000,197.6,6625,12.35]
[null,null,null,null,null,null,null,null,null,null,null,null,null,null,null,null,null,null,null,null,null,null,null,null,null,null,null,null,null,null,null,795,"8core 3.92GHz P7","32core",183000,366.6,5718.75,11.456250000000001]
[null,null,null,null,null,null,null,null,null,null,null,null,null,null,null,null,null,null,null,null,null,null,null,null,null,null,null,null,null,null,null,795,"8core 3.92GHz P7","48core",286500,529.6,5968.75,11.033333333333333]
[null,null,null,null,null,null,null,null,null,null,null,null,null,null,null,null,null,null,null,null,null,null,null,null,null,null,null,null,null,null,null,795,"8core 3.92GHz P7","64core",363000,692.5,5671.875,10.8203125]
[null,null,null,null,null,null,null,null,null,null,null,null,null,null,null,null,null,null,null,null,null,null,null,null,null,null,null,null,null,null,null,795,"24core 3.7GHz P7","24core",149100,273.51,6212.5,11.39625]
[null,null,null,null,null,null,null,null,null,null,null,null,null,null,null,null,null,null,null,null,null,null,null,null,null,null,null,null,null,null,null,795,"24core 3.7GHz P7","48core",288500,547.02,6010.416666666667,11.39625]
[null,null,null,null,null,null,null,null,null,null,null,null,null,null,null,null,null,null,null,null,null,null,null,null,null,null,null,null,null,null,null,795,"24core 3.7GHz P7","72core",null,820.53,0,11.39625]
[null,null,null,null,null,null,null,null,null,null,null,null,null,null,null,null,null,null,null,null,null,null,null,null,null,null,null,null,null,null,null,795,"24core 3.7GHz P7","96core",null,1094.04,0,11.39625]
[null,null,null,null,null,null,null,null,null,null,null,null,null,null,null,null,null,null,null,null,null,null,null,null,null,null,null,null,null,null,null,795,"24core 3.7GHz P7","120core",null,1367.55,{"$f":"AI142/LEFT($AH142,SEARCH(\"core\",$AH142)-1)","v":0},11.39625]
[null,null,null,null,null,null,null,null,null,null,null,null,null,null,null,null,null,null,null,null,null,null,null,null,null,null,null,null,null,null,null,795,"24core 3.7GHz P7","144core",null,1641.06,0,11.39625]
[null,null,null,null,null,null,null,null,null,null,null,null,null,null,null,null,null,null,null,null,null,null,null,null,null,null,null,null,null,null,null,795,"24core 3.7GHz P7","168core",null,1914.57,0,11.39625]
[null,null,null,null,null,null,null,null,null,null,null,null,null,null,null,null,null,null,null,null,null,null,null,null,null,null,null,null,null,null,null,795,"24core 3.7GHz P7","192core",null,2188.08,0,11.39625]
[null,null,null,null,null,null,null,null,null,null,null,null,null,null,null,null,null,null,null,null,null,null,null,null,null,null,null,null,null,null,null,"Blade\nCenter","32core 4.0GHz P7","32core",204300,372.27,6384.375,11.633437499999999]
[null,null,null,null,null,null,null,null,null,null,null,null,null,null,null,null,null,null,null,null,null,null,null,null,null,null,null,null,null,null,null,null,"32core 4.0GHz P7","64core",399200,744.54,6237.5,11.633437499999999]
[null,null,null,null,null,null,null,null,null,null,null,null,null,null,null,null,null,null,null,null,null,null,null,null,null,null,null,null,null,null,null,null,"32core 4.0GHz P7","96core",null,1116.81,0,11.633437499999999]
[null,null,null,null,null,null,null,null,null,null,null,null,null,null,null,null,null,null,null,null,null,null,null,null,null,null,null,null,null,null,null,null,"32core 4.0GHz P7","128core",null,1489.08,0,11.633437499999999]
[null,null,null,null,null,null,null,null,null,null,null,null,null,null,null,null,null,null,null,null,null,null,null,null,null,null,null,null,null,null,null,null,"32core 4.0GHz P7","160core",null,1861.35,0,11.633437499999999]
[null,null,null,null,null,null,null,null,null,null,null,null,null,null,null,null,null,null,null,null,null,null,null,null,null,null,null,null,null,null,null,"Pure\nFlex","32core 4.0GHz P7","192core",null,2233.62,0,11.633437499999999]
[null,null,null,null,null,null,null,null,null,null,null,null,null,null,null,null,null,null,null,null,null,null,null,null,null,null,null,null,null,null,null,null,"32core 4.0GHz P7","224core",null,2605.89,0,11.633437499999999]
[null,null,null,null,null,null,null,null,null,null,null,null,null,null,null,null,null,null,null,null,null,null,null,null,null,null,null,null,null,null,null,null,"32core 4.0GHz P7","256core",null,2978.16,0,11.633437499999999]
[null,null,null,null,null,null,null,null,null,null,null,null,null,null,null,null,null,null,null,null,null,null,null,null,null,null,null,null,null,null,null,null,"PS700","4core",21100,45.13,5275,11.282500000000001]
[null,null,null,null,null,null,null,null,null,null,null,null,null,null,null,null,null,null,null,null,null,null,null,null,null,null,null,null,null,null,null,null,"PS701","8core",42100,81.239999999999995,5262.5,10.154999999999999]
[null,null,null,null,null,null,null,null,null,null,null,null,null,null,null,null,null,null,null,null,null,null,null,null,null,null,null,null,null,null,null,null,"PS702","16core",76300,154.36000000000001,4768.75,9.6475000000000009]
[null,null,null,null,null,null,null,null,null,null,null,null,null,null,null,null,null,null,null,null,null,null,null,null,null,null,null,null,null,null,null,null,"PS703","16core",64000,134.11000000000001,4000,8.3818750000000009]
[null,null,null,null,null,null,null,null,null,null,null,null,null,null,null,null,null,null,null,null,null,null,null,null,null,null,null,null,null,null,null,null,"PS704","32core",110000,251.45,3437.5,7.8578124999999996]
[null,null,null,null,null,null,null,null,null,null,null,null,null,null,null,null,null,null,null,null,null,null,null,null,null,null,null,null,null,null,null,null,"P260 3.3GHz （2x4c）","8core",38500,92.8,4812.5,11.6]
[null,null,null,null,null,null,null,null,null,null,null,null,null,null,null,null,null,null,null,null,null,null,null,null,null,null,null,null,null,null,null,null,"P260 3.22GHz P7","16core",80500,163.80000000000001,5031.25,10.237500000000001]
[null,null,null,null,null,null,null,null,null,null,null,null,null,null,null,null,null,null,null,null,null,null,null,null,null,null,null,null,null,null,null,null,"P260 3.55GHz P7","16core",87000,176.6,5437.5,11.0375]
[null,null,null,null,null,null,null,null,null,null,null,null,null,null,null,null,null,null,null,null,null,null,null,null,null,null,null,null,null,null,null,null,"P260 4.08GHz P7+","8Core",51400,115.5,6425,14.4375]
[null,null,null,null,null,null,null,null,null,null,null,null,null,null,null,null,null,null,null,null,null,null,null,null,null,null,null,null,null,null,null,null,"P260 3.61GHz P7+","16Core",99500,197.7,6218.75,12.356249999999999]
[null,null,null,null,null,null,null,null,null,null,null,null,null,null,null,null,null,null,null,null,null,null,null,null,null,null,null,null,null,null,null,null,"P260 4.11GHz P7+","16Core",110000,218.5,6875,13.65625]
[null,null,null,null,null,null,null,null,null,null,null,null,null,null,null,null,null,null,null,null,null,null,null,null,null,null,null,null,null,null,null,null,"P460 3.3GHz （4x4c）","16core",80500,174,5031.25,10.875]
[null,null,null,null,null,null,null,null,null,null,null,null,null,null,null,null,null,null,null,null,null,null,null,null,null,null,null,null,null,null,null,null,"P460 3.22GHz P7","32core",150000,307,4687.5,9.59375]
[null,null,null,null,null,null,null,null,null,null,null,null,null,null,null,null,null,null,null,null,null,null,null,null,null,null,null,null,null,null,null,null,"P460 3.55GHz P7","32core",162000,331.1,{"$f":"AI167/LEFT($AH167,SEARCH(\"core\",$AH167)-1)","v":5062.5},{"$f":"AJ167/LEFT($AH167,SEARCH(\"core\",$AH167)-1)","v":10.346875000000001}]
[null,null,null,null,null,null,null,null,null,null,null,null,null,null,null,null,null,null,null,null,null,null,null,null,null,null,null,null,null,null,null,null,"P460 3.6GHz P7+","32Core",198900,null,{"$f":"AI168/LEFT($AH168,SEARCH(\"core\",$AH168)-1)","v":6215.625}]
[null,null,null,null,null,null,null,null,null,null,null,null,null,null,null,null,null,null,null,null,null,null,null,null,null,null,null,null,null,null,null,null,"P460 4.1GHz P7+","32Core",219900,null,{"$f":"AI169/LEFT($AH169,SEARCH(\"core\",$AH169)-1)","v":6871.875}]
[null,null,null,null,null,null,null,null,null,null,null,null,null,null,null,null,null,null,null,null,null,null,null,null,null,null,null,null,null,null,null,null,"P460 4.0GHz P7+","16Core",109500,null,{"$f":"AI170/LEFT($AH170,SEARCH(\"core\",$AH170)-1)","v":6843.75}]
[null,null,null,null,null,null,null,null,null,null,null,null,null,null,null,null,null,null,null,null,null,null,null,null,null,null,null,null,null,null,null,{"$f":"V4","v":812},{"$f":"W4","v":"1core 3.02GHz P8"},{"$f":"X4","v":"1core"},9880,0,9880,0]
[null,null,null,null,null,null,null,null,null,null,null,null,null,null,null,null,null,null,null,null,null,null,null,null,null,null,null,null,null,null,null,812,"4core 3.02GHz P8","4core",0,62.5,0,15.625]
[null,null,null,null,null,null,null,null,null,null,null,null,null,null,null,null,null,null,null,null,null,null,null,null,null,null,null,null,null,null,null,814,"4core 3.02GHz P8","4core",39500,62.5,9875,15.625]
[null,null,null,null,null,null,null,null,null,null,null,null,null,null,null,null,null,null,null,null,null,null,null,null,null,null,null,null,null,null,null,814,"6core 3.02GHz P8","6core",59500,91.1,9916.6666666666661,15.183333333333332]
[null,null,null,null,null,null,null,null,null,null,null,null,null,null,null,null,null,null,null,null,null,null,null,null,null,null,null,null,null,null,null,814,"8core 3.72GHz P8","8core",85500,134.5,10687.5,16.8125]
[null,null,null,null,null,null,null,null,null,null,null,null,null,null,null,null,null,null,null,null,null,null,null,null,null,null,null,null,null,null,null,822,"6core 3.89GHz P8","6core",76500,112.9,12750,18.816666666666666]
[null,null,null,null,null,null,null,null,null,null,null,null,null,null,null,null,null,null,null,null,null,null,null,null,null,null,null,null,null,null,null,822,"6core 3.89GHz P8","12core",153000,220.2,12750,18.349999999999998]
[null,null,null,null,null,null,null,null,null,null,null,null,null,null,null,null,null,null,null,null,null,null,null,null,null,null,null,null,null,null,null,822,"8core 4.15GHz P8","8core",108000,155.1,13500,19.387499999999999]
[null,null,null,null,null,null,null,null,null,null,null,null,null,null,null,null,null,null,null,null,null,null,null,null,null,null,null,null,null,null,null,822,"8core 4.15GHz P8","16core",216000,302.39999999999998,13500,18.899999999999999]
[null,null,null,null,null,null,null,null,null,null,null,null,null,null,null,null,null,null,null,null,null,null,null,null,null,null,null,null,null,null,null,822,"10core 3.42GHz P8","10core",115000,166.2,11500,16.619999999999997]
[null,null,null,null,null,null,null,null,null,null,null,null,null,null,null,null,null,null,null,null,null,null,null,null,null,null,null,null,null,null,null,822,"10core 3.42GHz P8","20core",230000,324,11500,16.2]
[null,null,null,null,null,null,null,null,null,null,null,null,null,null,null,null,null,null,null,null,null,null,null,null,null,null,null,null,null,null,null,824,"6core 3.89GHz P8","6Core",72000,112.9,12000,18.816666666666666]
[null,null,null,null,null,null,null,null,null,null,null,null,null,null,null,null,null,null,null,null,null,null,null,null,null,null,null,null,null,null,null,824,"6core 3.89GHz P8","12Core",130000,220.2,10833.333333333334,18.349999999999998]
[null,null,null,null,null,null,null,null,null,null,null,null,null,null,null,null,null,null,null,null,null,null,null,null,null,null,null,null,null,null,null,824,"8core 4.15GHz P8",4,94500,155.1,{"$error":"#VALUE!"},{"$error":"#VALUE!"}]
[null,null,null,null,null,null,null,null,null,null,null,null,null,null,null,null,null,null,null,null,null,null,null,null,null,null,null,null,null,null,null,824,"8core 4.15GHz P8","16Core",173500,302.39999999999998,10843.75,18.899999999999999]
[null,null,null,null,null,null,null,null,null,null,null,null,null,null,null,null,null,null,null,null,null,null,null,null,null,null,null,null,null,null,null,824,"12core 3.52GHz P8","24Core",230500,394.2,9604.1666666666661,16.425000000000001]
[null,null,null,null,null,null,null,null,null,null,null,null,null,null,null,null,null,null,null,null,null,null,null,null,null,null,null,null,null,null,null,870,"32core 4.02GHz P8","32core",359000,630.4,11218.75,19.7]
[null,null,null,null,null,null,null,null,null,null,null,null,null,null,null,null,null,null,null,null,null,null,null,null,null,null,null,null,null,null,null,870,"32core 4.02GHz P8","64core",711000,1260.8,11109.375,19.7]
[null,null,null,null,null,null,null,null,null,null,null,null,null,null,null,null,null,null,null,null,null,null,null,null,null,null,null,null,null,null,null,870,"40core 4.19GHz P8","40Core",460000,800,11500,20]
[null,null,null,null,null,null,null,null,null,null,null,null,null,null,null,null,null,null,null,null,null,null,null,null,null,null,null,null,null,null,null,870,"40core 4.19GHz P8","80Core",911000,1599.9,11387.5,19.998750000000001]
[null,null,null,null,null,null,null,null,null,null,null,null,null,null,null,null,null,null,null,null,null,null,null,null,null,null,null,null,null,null,null,880,"32core 4.35GHz P8","32core",381000,669.4,11906.25,20.918749999999999]
[null,null,null,null,null,null,null,null,null,null,null,null,null,null,null,null,null,null,null,null,null,null,null,null,null,null,null,null,null,null,null,880,"32core 4.35GHz P8","64core",755000,1338.8,11796.875,20.918749999999999]
[null,null,null,null,null,null,null,null,null,null,null,null,null,null,null,null,null,null,null,null,null,null,null,null,null,null,null,null,null,null,null,880,"32core 4.35GHz P8","96core",1144000,2008.2,11916.666666666666,20.918749999999999]
[null,null,null,null,null,null,null,null,null,null,null,null,null,null,null,null,null,null,null,null,null,null,null,null,null,null,null,null,null,null,null,880,"32core 4.35GHz P8","128core",1523000,2677.6,11898.4375,20.918749999999999]
[null,null,null,null,null,null,null,null,null,null,null,null,null,null,null,null,null,null,null,null,null,null,null,null,null,null,null,null,null,null,null,880,"48core 4.00GHz P8","48Core",518000,912.6,10791.666666666666,19.012499999999999]
[null,null,null,null,null,null,null,null,null,null,null,null,null,null,null,null,null,null,null,null,null,null,null,null,null,null,null,null,null,null,null,880,"48core 4.00GHz P8","96Core",1034000,1825.1,10770.833333333334,19.011458333333334]
[null,null,null,null,null,null,null,null,null,null,null,null,null,null,null,null,null,null,null,null,null,null,null,null,null,null,null,null,null,null,null,880,"48core 4.00GHz P8","144Core",1551000,2737.7,10770.833333333334,19.011805555555554]
[null,null,null,null,null,null,null,null,null,null,null,null,null,null,null,null,null,null,null,null,null,null,null,null,null,null,null,null,null,null,null,880,"48core 4.00GHz P8","192Core",2069000,3650.3,10776.041666666666,19.011979166666666]
[null,null,null,null,null,null,null,null,null,null,null,null,null,null,null,null,null,null,null,null,null,null,null,null,null,null,null,null,null,null,"Cモデル",870,"32core 4.02GHz P8","32core",359000,630.4,11218.75,19.7]
[null,null,null,null,null,null,null,null,null,null,null,null,null,null,null,null,null,null,null,null,null,null,null,null,null,null,null,null,null,null,"Cモデル",870,"32core 4.02GHz P8","64core",711000,1260.8,11109.375,19.7]
[null,null,null,null,null,null,null,null,null,null,null,null,null,null,null,null,null,null,null,null,null,null,null,null,null,null,null,null,null,null,"Cモデル",880,"32core 4.35GHz P8","32core",381000,669.4,11906.25,20.918749999999999]
[null,null,null,null,null,null,null,null,null,null,null,null,null,null,null,null,null,null,null,null,null,null,null,null,null,null,null,null,null,null,"Cモデル",880,"32core 4.35GHz P8","64core",755000,1338.8,11796.875,20.918749999999999]
[null,null,null,null,null,null,null,null,null,null,null,null,null,null,null,null,null,null,null,null,null,null,null,null,null,null,null,null,null,null,"Cモデル",880,"32core 4.35GHz P8","96core",1144000,2008.2,11916.666666666666,20.918749999999999]
[null,null,null,null,null,null,null,null,null,null,null,null,null,null,null,null,null,null,null,null,null,null,null,null,null,null,null,null,null,null,"Cモデル",880,"32core 4.35GHz P8","128core",1523000,2677.6,11898.4375,20.918749999999999]
[null,null,null,null,null,null,null,null,null,null,null,null,null,null,null,null,null,null,null,null,null,null,null,null,null,null,null,null,null,null,"Cモデル",880,"40core 4.19GHz P8","40Core",460000,800,11500,20]
[null,null,null,null,null,null,null,null,null,null,null,null,null,null,null,null,null,null,null,null,null,null,null,null,null,null,null,null,null,null,"Cモデル",880,"40core 4.19GHz P8","80Core",911000,1599.9,11387.5,19.998750000000001]
[null,null,null,null,null,null,null,null,null,null,null,null,null,null,null,null,null,null,null,null,null,null,null,null,null,null,null,null,null,null,"Cモデル",880,"40core 4.19GHz P8","120core",1366000,2400,11383.333333333334,20]
[null,null,null,null,null,null,null,null,null,null,null,null,null,null,null,null,null,null,null,null,null,null,null,null,null,null,null,null,null,null,"Cモデル",880,"40core 4.19GHz P8","160core",1822000,3200,11387.5,20]
[null,null,null,null,null,null,null,null,null,null,null,null,null,null,null,null,null,null,null,null,null,null,null,null,null,null,null,null,null,null,"Cモデル",880,"48core 4.00GHz P8","48Core",518000,912.6,10791.666666666666,19.012499999999999]
[null,null,null,null,null,null,null,null,null,null,null,null,null,null,null,null,null,null,null,null,null,null,null,null,null,null,null,null,null,null,"Cモデル",880,"48core 4.00GHz P8","96Core",1034000,1825.1,10770.833333333334,19.011458333333334]
[null,null,null,null,null,null,null,null,null,null,null,null,null,null,null,null,null,null,null,null,null,null,null,null,null,null,null,null,null,null,"Cモデル",880,"48core 4.00GHz P8","144Core",1551000,2737.7,10770.833333333334,19.011805555555554]
[null,null,null,null,null,null,null,null,null,null,null,null,null,null,null,null,null,null,null,null,null,null,null,null,null,null,null,null,null,null,"Cモデル",880,"48core 4.00GHz P8","192Core",2069000,3650.3,10776.041666666666,19.011979166666666]
[null,null,null,null,null,null,null,null,null,null,null,null,null,null,null,null,null,null,null,null,null,null,null,null,null,null,null,null,null,null,null,{"$f":"L4","v":914},{"$f":"M4","v":"4core 2.3-3.8GHz P9"},"4core",52500,60.4,13125,15.1]
[null,null,null,null,null,null,null,null,null,null,null,null,null,null,null,null,null,null,null,null,null,null,null,null,null,null,null,null,null,null,null,914,"6core 2.3-3.8GHz P9","6core",78500,88.5,13083.333333333334,14.75]
[null,null,null,null,null,null,null,null,null,null,null,null,null,null,null,null,null,null,null,null,null,null,null,null,null,null,null,null,null,null,null,914,"8core 2.8-3.8GHz P9","8core",122500,136.5,15312.5,17.0625]
[null,null,null,null,null,null,null,null,null,null,null,null,null,null,null,null,null,null,null,null,null,null,null,null,null,null,null,null,null,null,null,922,"8core 3.4-3.9GHz P9","8core",68000,160.5,17000,20.0625]
[null,null,null,null,null,null,null,null,null,null,null,null,null,null,null,null,null,null,null,null,null,null,null,null,null,null,null,null,null,null,null,922,"10core 2.9-3.8GHz P9","10Core",60000,173.5,15000,17.350000000000001]
[null,null,null,null,null,null,null,null,null,null,null,null,null,null,null,null,null,null,null,null,null,null,null,null,null,null,null,null,null,null,null,922,"8core 3.4-3.9GHz P9","16core",68000,160.5,17000,10.03125]
[null,null,null,null,null,null,null,null,null,null,null,null,null,null,null,null,null,null,null,null,null,null,null,null,null,null,null,null,null,null,null,922,"10core 2.9-3.8GHz P9","20Core",60000,173.5,15000,8.6750000000000007]
[null,null,null,null,null,null,null,null,null,null,null,null,null,null,null,null,null,null,null,null,null,null,null,null,null,null,null,null,null,null,null,924,"8core 3.8-4.0GHz P9","8core",145500,174.1,18187.5,21.762499999999999]
[null,null,null,null,null,null,null,null,null,null,null,null,null,null,null,null,null,null,null,null,null,null,null,null,null,null,null,null,null,null,null,924,"8core 3.8-4.0GHz P9","16Core",268500,339.5,16781.25,21.21875]
[null,null,null,null,null,null,null,null,null,null,null,null,null,null,null,null,null,null,null,null,null,null,null,null,null,null,null,null,null,null,null,924,"10core 3.5-3.9GHz P9","10Core",174500,203.3,17450,20.330000000000002]
[null,null,null,null,null,null,null,null,null,null,null,null,null,null,null,null,null,null,null,null,null,null,null,null,null,null,null,null,null,null,null,924,"10core 3.5-3.9GHz P9","20Core",318000,396.4,15900,19.82]
[null,null,null,null,null,null,null,null,null,null,null,null,null,null,null,null,null,null,null,null,null,null,null,null,null,null,null,null,null,null,null,924,"12core 3.4-3.9GHz P9","24Core",370700,462.7,15445.833333333334,19.279166666666665]
[null,null,null,null,null,null,null,null,null,null,null,null,null,null,null,null,null,null,null,null,null,null,null,null,null,null,null,null,null,null,null,980,"24core 3.58-3.9GHz P9","24Core",381000,533.70000000000005,15875,22.237500000000001]
[null,null,null,null,null,null,null,null,null,null,null,null,null,null,null,null,null,null,null,null,null,null,null,null,null,null,null,null,null,null,null,980,"24core 3.58-3.9GHz P9","48Core",759000,1067.3,15812.5,22.235416666666666]
[null,null,null,null,null,null,null,null,null,null,null,null,null,null,null,null,null,null,null,null,null,null,null,null,null,null,null,null,null,null,null,980,"24core 3.58-3.9GHz P9","72Core",1140000,1601,15833.333333333334,22.236111111111111]
[null,null,null,null,null,null,null,null,null,null,null,null,null,null,null,null,null,null,null,null,null,null,null,null,null,null,null,null,null,null,null,980,"24core 3.58-3.9GHz P9","96Core",1522000,2134.6,15854.166666666666,22.235416666666666]
[null,null,null,null,null,null,null,null,null,null,null,null,null,null,null,null,null,null,null,null,null,null,null,null,null,null,null,null,null,null,null,980,{"$f":"M20","v":"32core 3.9-4.0GHz P9"},"32Core",508900,722.2,15903.125,22.568750000000001]
[null,null,null,null,null,null,null,null,null,null,null,null,null,null,null,null,null,null,null,null,null,null,null,null,null,null,null,null,null,null,null,{"$f":"L21","v":980},"32core 3.9-4.0GHz P9","64Core",1012000,1444.4,15812.5,22.568750000000001]
[null,null,null,null,null,null,null,null,null,null,null,null,null,null,null,null,null,null,null,null,null,null,null,null,null,null,null,null,null,null,null,980,"32core 3.9-4.0GHz P9","96Core",1521000,2166.6,15843.75,22.568749999999998]
[null,null,null,null,null,null,null,null,null,null,null,null,null,null,null,null,null,null,null,null,null,null,null,null,null,null,null,null,null,null,null,980,"32core 3.9-4.0GHz P9","128Core",2030000,2888.8,15859.375,22.568750000000001]
[null,null,null,null,null,null,null,null,null,null,null,null,null,null,null,null,null,null,null,null,null,null,null,null,null,null,null,null,null,null,null,980,"40core 3.7-3.9GHz P9","40Core",611300,871.5,15282.5,21.787500000000001]
[null,null,null,null,null,null,null,null,null,null,null,null,null,null,null,null,null,null,null,null,null,null,null,null,null,null,null,null,null,null,null,980,"40core 3.7-3.9GHz P9","80Core",1216000,1743,15200,21.787500000000001]
[null,null,null,null,null,null,null,null,null,null,null,null,null,null,null,null,null,null,null,null,null,null,null,null,null,null,null,null,null,null,null,980,"40core 3.7-3.9GHz P9","120Core",1827000,2614.5,15225,21.787500000000001]
[null,null,null,null,null,null,null,null,null,null,null,null,null,null,null,null,null,null,null,null,null,null,null,null,null,null,null,null,null,null,null,980,"40core 3.7-3.9GHz P9","160Core",2439000,3486,15243.75,21.787500000000001]
[null,null,null,null,null,null,null,null,null,null,null,null,null,null,null,null,null,null,null,null,null,null,null,null,null,null,null,null,null,null,null,980,"44core 3.58-3.9GHz P9","44Core",639000,937.7,14522.727272727272,21.311363636363637]
[null,null,null,null,null,null,null,null,null,null,null,null,null,null,null,null,null,null,null,null,null,null,null,null,null,null,null,null,null,null,null,980,"44core 3.58-3.9GHz P9","88Core",1271000,1875.3,14443.181818181818,21.310227272727271]
[null,null,null,null,null,null,null,null,null,null,null,null,null,null,null,null,null,null,null,null,null,null,null,null,null,null,null,null,null,null,null,980,"44core 3.58-3.9GHz P9","132Core",1910000,2813,14469.69696969697,21.310606060606062]
[null,null,null,null,null,null,null,null,null,null,null,null,null,null,null,null,null,null,null,null,null,null,null,null,null,null,null,null,null,null,null,980,"44core 3.58-3.9GHz P9","176Core",2549000,3750.6,14482.954545454546,21.310227272727271]
[null,null,null,null,null,null,null,null,null,null,null,null,null,null,null,null,null,null,null,null,null,null,null,null,null,null,null,null,null,null,null,980,"48core 3.55-3.9GHz P9","48Core",687500,1008.1,14322.916666666666,21.002083333333335]
[null,null,null,null,null,null,null,null,null,null,null,null,null,null,null,null,null,null,null,null,null,null,null,null,null,null,null,null,null,null,null,980,"48core 3.55-3.9GHz P9","96Core",1368000,2016.2,14250,21.002083333333335]
[null,null,null,null,null,null,null,null,null,null,null,null,null,null,null,null,null,null,null,null,null,null,null,null,null,null,null,null,null,null,null,980,"48core 3.55-3.9GHz P9","144Core",2055600,3024.2,14275,21.001388888888886]
[null,null,null,null,null,null,null,null,null,null,null,null,null,null,null,null,null,null,null,null,null,null,null,null,null,null,null,null,null,null,null,980,"48core 3.55-3.9GHz P9","192Core",2743000,4032.3,14286.458333333334,21.001562500000002]
[null,null,null,null,null,null,null,null,null,null,null,null,null,null,null,null,null,null,null,null,null,null,null,null,null,null,null,null,null,null,"Power10",{"$f":"B4","v":1012},{"$f":"C4","v":"1core 3.00-3.90GHz P10"},"1core",29000,"-",29000,{"$error":"#VALUE!"}]
[null,null,null,null,null,null,null,null,null,null,null,null,null,null,null,null,null,null,null,null,null,null,null,null,null,null,null,null,null,null,null,{"$f":"B5","v":1012},{"$f":"C5","v":"4core 3.00-3.90GHz P10"},{"$f":"D5","v":"4core"},{"$f":"E5","v":111300},{"$f":"F5","v":130.4},{"$f":"G5","v":27825},{"$f":"H5","v":32.6}]
[null,null,null,null,null,null,null,null,null,null,null,null,null,null,null,null,null,null,null,null,null,null,null,null,null,null,null,null,null,null,null,1012,"8core 3.00-3.90GHz P10","8core",203100,234.2,25387.5,29.274999999999999]
[null,null,null,null,null,null,null,null,null,null,null,null,null,null,null,null,null,null,null,null,null,null,null,null,null,null,null,null,null,null,null,1014,"4core 3.00-3.90GHz P10","4core",106300,129.4,26575,32.35]
[null,null,null,null,null,null,null,null,null,null,null,null,null,null,null,null,null,null,null,null,null,null,null,null,null,null,null,null,null,null,null,1014,"8core 3.00-3.90GHz P10","8core",205300,254.2,25662.5,31.774999999999999]
[null,null,null,null,null,null,null,null,null,null,null,null,null,null,null,null,null,null,null,null,null,null,null,null,null,null,null,null,null,null,null,1022,"4core 3.00-3.90GHz P10","8core",198200,129.4,24775,16.175000000000001]
[null,null,null,null,null,null,null,null,null,null,null,null,null,null,null,null,null,null,null,null,null,null,null,null,null,null,null,null,null,null,null,1022,"8core 3.00-3.90GHz P10","8core",0,254.2,26575,31.774999999999999]
[null,null,null,null,null,null,null,null,null,null,null,null,null,null,null,null,null,null,null,null,null,null,null,null,null,null,null,null,null,null,null,1022,"8core 3.00-3.90GHz P10","16core",0,477.8,26575,29.862500000000001]
[null,null,null,null,null,null,null,null,null,null,null,null,null,null,null,null,null,null,null,null,null,null,null,null,null,null,null,null,null,null,null,1022,"12core 2.90-4.00GHz P10","12core",0,0,26575,0]
[null,null,null,null,null,null,null,null,null,null,null,null,null,null,null,null,null,null,null,null,null,null,null,null,null,null,null,null,null,null,null,1022,"16core 2.75-4.00GHz P10","16core",0,0,26575,0]
[null,null,null,null,null,null,null,null,null,null,null,null,null,null,null,null,null,null,null,null,null,null,null,null,null,null,null,null,null,null,null,1022,"20core 2.45-3.90GHz P10","20core",0,0,26175,0]
[null,null,null,null,null,null,null,null,null,null,null,null,null,null,null,null,null,null,null,null,null,null,null,null,null,null,null,null,null,null,null,1022,"12core 2.90-4.00GHz P10","24core",0,0,26575,0]
[null,null,null,null,null,null,null,null,null,null,null,null,null,null,null,null,null,null,null,null,null,null,null,null,null,null,null,null,null,null,null,1022,"16core 2.75-4.00GHz P10","32core",0,0,26575,0]
[null,null,null,null,null,null,null,null,null,null,null,null,null,null,null,null,null,null,null,null,null,null,null,null,null,null,null,null,null,null,null,1022,"20core 2.45-3.90GHz P10","40core",0,0,26175,0]
[null,null,null,null,null,null,null,null,null,null,null,null,null,null,null,null,null,null,null,null,null,null,null,null,null,null,null,null,null,null,null,1024,"12core 3.40-4.00GHz P10","12core",312500,0,26041.666666666668,0]
[null,null,null,null,null,null,null,null,null,null,null,null,null,null,null,null,null,null,null,null,null,null,null,null,null,null,null,null,null,null,null,1024,"16core 3.10-4.00GHz P10","16core",383400,0,23962.5,0]
[null,null,null,null,null,null,null,null,null,null,null,null,null,null,null,null,null,null,null,null,null,null,null,null,null,null,null,null,null,null,null,1024,"24core 2.75-3.90GHz P10","24core",500500,0,20854.166666666668,0]
[null,null,null,null,null,null,null,null,null,null,null,null,null,null,null,null,null,null,null,null,null,null,null,null,null,null,null,null,null,null,null,1024,"12core 3.40-4.00GHz P10","24core",585100,0,24379.166666666668,0]
[null,null,null,null,null,null,null,null,null,null,null,null,null,null,null,null,null,null,null,null,null,null,null,null,null,null,null,null,null,null,null,1024,"16core 3.10-4.00GHz P10","32core",725000,0,22656.25,0]
[null,null,null,null,null,null,null,null,null,null,null,null,null,null,null,null,null,null,null,null,null,null,null,null,null,null,null,null,null,null,null,1024,"24core 2.75-3.90GHz P10","48core",947500,0,19739.583333333332,0]
[null,null,null,null,null,null,null,null,null,null,null,null,null,null,null,null,null,null,null,null,null,null,null,null,null,null,null,null,null,null,null,1080,"40core 3.65-3.9GHz P10","40core",922000,1056.3,23050,26.407499999999999]
[null,null,null,null,null,null,null,null,null,null,null,null,null,null,null,null,null,null,null,null,null,null,null,null,null,null,null,null,null,null,null,1080,"40core 3.65-3.9GHz P10","80core",1834000,2112.6,22925,26.407499999999999]
[null,null,null,null,null,null,null,null,null,null,null,null,null,null,null,null,null,null,null,null,null,null,null,null,null,null,null,null,null,null,null,1080,"40core 3.65-3.9GHz P10","120core",2756000,3168.9,22966.666666666668,26.407500000000002]
[null,null,null,null,null,null,null,null,null,null,null,null,null,null,null,null,null,null,null,null,null,null,null,null,null,null,null,null,null,null,null,1080,"40core 3.65-3.9GHz P10","160core",3678000,4225.2,22987.5,26.407499999999999]
[null,null,null,null,null,null,null,null,null,null,null,null,null,null,null,null,null,null,null,null,null,null,null,null,null,null,null,null,null,null,null,1080,"48core 3.6-4.15GHz P10","48core",1129000,1315.4,23520.833333333332,27.404166666666669]
[null,null,null,null,null,null,null,null,null,null,null,null,null,null,null,null,null,null,null,null,null,null,null,null,null,null,null,null,null,null,null,1080,"48core 3.6-4.15GHz P10","96core",2246000,2630.9,23395.833333333332,27.405208333333334]
[null,null,null,null,null,null,null,null,null,null,null,null,null,null,null,null,null,null,null,null,null,null,null,null,null,null,null,null,null,null,null,1080,"48core 3.6-4.15GHz P10","144core",3375000,3946.3,23437.5,27.404861111111114]
[null,null,null,null,null,null,null,null,null,null,null,null,null,null,null,null,null,null,null,null,null,null,null,null,null,null,null,null,null,null,null,1080,"48core 3.6-4.15GHz P10","192core",4504000,5261.8,23458.333333333332,27.405208333333334]
[null,null,null,null,null,null,null,null,null,null,null,null,null,null,null,null,null,null,null,null,null,null,null,null,null,null,null,null,null,null,null,1080,"60core 3.55-4.0GHz P10","60core",1320000,1578.6,22000,26.31]
[null,null,null,null,null,null,null,null,null,null,null,null,null,null,null,null,null,null,null,null,null,null,null,null,null,null,null,null,null,null,null,1080,"60core 3.55-4.0GHz P10","120core",2626000,3157.2,21883.333333333332,26.31]
[null,null,null,null,null,null,null,null,null,null,null,null,null,null,null,null,null,null,null,null,null,null,null,null,null,null,null,null,null,null,null,1080,"60core 3.55-4.0GHz P10","180core",3946000,4735.8,21922.222222222223,26.310000000000002]
[null,null,null,null,null,null,null,null,null,null,null,null,null,null,null,null,null,null,null,null,null,null,null,null,null,null,null,null,null,null,null,1080,"60core 3.55-4.0GHz P10","240core",5266000,6314.4,21941.666666666668,26.31]
[null,null,null,null,null,null,null,null,null,null,null,null,null,null,null,null,null,null,null,null,null,null,null,null,null,null,null,null,null,null,null,0,0,0,0,0,0,0]
[null,null,null,null,null,null,null,null,null,null,null,null,null,null,null,null,null,null,null,null,null,null,null,null,null,null,null,null,null,null,null,0,0,0,0,0,0,0]
[null,null,null,null,null,null,null,null,null,null,null,null,null,null,null,null,null,null,null,null,null,null,null,null,null,null,null,null,null,null,null,0,0,0,0,0,0,0]
[null,null,null,null,null,null,null,null,null,null,null,null,null,null,null,null,null,null,null,null,null,null,null,null,null,null,null,null,null,null,null,0,0,0,0,0,0,0]
[null,null,null,null,null,null,null,null,null,null,null,null,null,null,null,null,null,null,null,null,null,null,null,null,null,null,null,null,null,null,null,0,0,0,0,0,0,0]
[null,null,null,null,null,null,null,null,null,null,null,null,null,null,null,null,null,null,null,null,null,null,null,null,null,null,null,null,null,null,null,0,0,0,0,0,0,0]
[null,null,null,null,null,null,null,null,null,null,null,null,null,null,null,null,null,null,null,null,null,null,null,null,null,null,null,null,null,null,null,0,0,0,0,0,0,0]
[null,null,null,null,null,null,null,null,null,null,null,null,null,null,null,null,null,null,null,null,null,null,null,null,null,null,null,null,null,null,null,0,0,0,0,0,0,0]
[null,null,null,null,null,null,null,null,null,null,null,null,null,null,null,null,null,null,null,null,null,null,null,null,null,null,null,null,null,null,null,0,0,0,0,0,0,0]
[null,null,null,null,null,null,null,null,null,null,null,null,null,null,null,null,null,null,null,null,null,null,null,null,null,null,null,null,null,null,null,0,0,0,0,0,0,0]
[null,null,null,null,null,null,null,null,null,null,null,null,null,null,null,null,null,null,null,null,null,null,null,null,null,null,null,null,null,null,null,0,0,0,0,0,0,0]
[null,null,null,null,null,null,null,null,null,null,null,null,null,null,null,null,null,null,null,null,null,null,null,null,null,null,null,null,null,null,null,0,0,0,0,0,0,0]
[null,null,null,null,null,null,null,null,null,null,null,null,null,null,null,null,null,null,null,null,null,null,null,null,null,null,null,null,null,null,null,0,0,0,0,0,0,0]
[null,null,null,null,null,null,null,null,null,null,null,null,null,null,null,null,null,null,null,null,null,null,null,null,null,null,null,null,null,null,null,0,0,0,0,0,0,0]
[null,null,null,null,null,null,null,null,null,null,null,null,null,null,null,null,null,null,null,null,null,null,null,null,null,null,null,null,null,null,null,0,0,0,0,0,0,0]
[null,null,null,null,null,null,null,null,null,null,null,null,null,null,null,null,null,null,null,null,null,null,null,null,null,null,null,null,null,null,null,0,0,0,0,0,0,0]
[null,null,null,null,null,null,null,null,null,null,null,null,null,null,null,null,null,null,null,null,null,null,null,null,null,null,null,null,null,null,null,0,0,0,0,0,0,0]
[null,null,null,null,null,null,null,null,null,null,null,null,null,null,null,null,null,null,null,null,null,null,null,null,null,null,null,null,null,null,null,0,0,0,0,0,0,0]
[null,null,null,null,null,null,null,null,null,null,null,null,null,null,null,null,null,null,null,null,null,null,null,null,null,null,null,null,null,null,null,0,0,0,0,0,0,0]
[null,null,null,null,null,null,null,null,null,null,null,null,null,null,null,null,null,null,null,null,null,null,null,null,null,null,null,null,null,null,null,0,0,0,0,0,0,0]
[null,null,null,null,null,null,null,null,null,null,null,null,null,null,null,null,null,null,null,null,null,null,null,null,null,null,null,null,null,null,null,0,0,0,0,0,0,0]
[null,null,null,null,null,null,null,null,null,null,null,null,null,null,null,null,null,null,null,null,null,null,null,null,null,null,null,null,null,null,null,0,0,0,0,0,0,0]
[null,null,null,null,null,null,null,null,null,null,null,null,null,null,null,null,null,null,null,null,null,null,null,null,null,null,null,null,null,null,null,0,0,0,0,0,0,0]
[null,null,null,null,null,null,null,null,null,null,null,null,null,null,null,null,null,null,null,null,null,null,null,null,null,null,null,null,null,null,null,0,0,0,0,0,0,0]
[null,null,null,null,null,null,null,null,null,null,null,null,null,null,null,null,null,null,null,null,null,null,null,null,null,null,null,null,null,null,null,0,0,0,0,0,0,0]
[null,null,null,null,null,null,null,null,null,null,null,null,null,null,null,null,null,null,null,null,null,null,null,null,null,null,null,null,null,null,null,0,0,0,0,0,0,0]
[null,null,null,null,null,null,null,null,null,null,null,null,null,null,null,null,null,null,null,null,null,null,null,null,null,null,null,null,null,null,null,0,0,0,0,0,0,0]
[null,null,null,null,null,null,null,null,null,null,null,null,null,null,null,null,null,null,null,null,null,null,null,null,null,null,null,null,null,null,null,0,0,0,0,0,0,0]

{"sheet":"＜参考資料＞パワーサイレンサーとスマートトレイ","index":6,"n_rows":3,"n_cols":11,"rows_kept":3,"cut":false,"hidden":false,"merged":[[0,0,0,20],[1,0,1,20]]}
["iGUAZU partnercontact <partnercontact@i-guazu.co.jp>へご依頼ください。"]
["※Power10構成には含まれません。"]
["■パワーサイレンサー",null,null,null,null,null,null,null,null,null,"■スマートトレイ"]

{"sheet":"vlook","index":7,"n_rows":22,"n_cols":11,"rows_kept":22,"cut":false,"hidden":true,"merged":[]}
[]
[null,null,null,"コア数",null,"プロセッサー","CPW","コントローラー","内蔵テープ","エディション","プロセッサーグループ"]
[null,"S914","9009-41A",4,{"$f":"C3&D3","v":"9009-41A4"},"POWER9\n#EP10",13125,"7.2GB(圧縮時)\n#EJ1D","不可","#EU2C","P05"]
[null,"S914","9009-41A",6,{"$f":"C4&D4","v":"9009-41A6"},"POWER9\n#EP11",13083.333000000001,"7.2GB(圧縮時)\n#EJ1D","不可","#EU2D","P10"]
[null,"S914","9009-41A",8,"9009-41A8","POWER9\n#EP12",15312.5,"7.2GB(圧縮時)\n#EJ1D","不可","なし","P10"]
[null,"S924","9009-42A",8,"9009-42A8","POWER9\n#EP1E",18187.5,null,null,"なし","P20"]
[null,"S924","9009-42A",16,"9009-42A16","POWER9\n#EP1E x2 ",16781.25,null,null,"なし","P20"]
[null,"S924","9009-42A",10,"9009-42A10","POWER9\n#EP1F",17450,null,null,"なし","P20"]
[null,"S924","9009-42A",20,"9009-42A20","POWER9\n#EP1F x2",15900,null,null,"なし","P20"]
[null,"S924","9009-42A",12,"9009-42A12","POWER9\n#EP1G",null,null,null,"なし","P20"]
[null,"S924","9009-42A",24,"9009-42A24","POWER9\n#EP1G x2",157112.5,null,null,"なし","P20"]
[null,"S814","8286-41A",4,"8286-41A4","POWER8\n#EPXK",9875,"7.2GB(圧縮時)\n#EJ0P",null,"#EU2C","P05"]
[null,"S814","8286-41A",6,"8286-41A6","POWER8\n#EPX0",{"$f":"59500/6","v":9916.6666666666661},"7.2GB(圧縮時)\n#EJ0P",null,"#EU2D","P10"]
[null,"S814","8286-41A",8,"8286-41A8","POWER8\n#EPX6",{"$f":"85500/8","v":10687.5},null,null,"なし","P10"]
[null,"S824","8286-42A",6,"8286-42A6","POWER8\n#EPXE",12000,null,null,"なし","P20"]
[null,"S824","8286-42A",12,"8286-42A12","POWER8\n#EPXE x2 ",{"$f":"130000/12","v":10833.333333333334},null,null,"なし","P20"]
[null,"S824","8286-42A",8,"8286-42A8","POWER8\n#EPXF",{"$f":"94500/8","v":11812.5},null,null,"なし","P20"]
[null,"S824","8286-42A",16,"8286-42A16","POWER8\n#EPXF x2",{"$f":"173500/16","v":10843.75},null,null,"なし","P20"]
[null,"S824","8286-42A",24,"8286-42A24","POWER8\n#EPXH x2",{"$f":"230500/24","v":9604.1666666666661},null,null,"なし","P20"]
[null,720,"8202-E4D",4,"8202-E4D4","POWER7+\n#EPCK",7100,"175MB\n(#EJ01)",null,"#0777"]
[null,720,"8202-E4D",6,"8202-E4D6","POWER7+\n#EPCL",7066.5,null,null,"#0779"]
[null,720,"8202-E4D",8,"8202-E4D8","POWER7+\n#EPCM",7037.5,null,null,"#0779"]

{"sheet":"SWMA","index":8,"n_rows":5,"n_cols":6,"rows_kept":5,"cut":false,"hidden":true,"merged":[]}
[]
[null,"IBM i","WQE","WDS","RDW","PVE"]
["ライセンス",null,true,false,true]
["３年",true,true,null,true,true]
["１年",true,true,null,true,true]